Workbook

Sheet Лист1
A1: Цена распила | B1: 0.09
A4: Цена ДСП | D4: 1 | G4: =F32+F33+F35+F36+F38+F39 -> 0 | I4: 2 | L4: =K32+K33+K35+K36+K38+K39 -> 0 | N4: 3 | Q4: =P32+P33+P35+P36+P38+P39 -> 0 | S4: 4 | V4: =U32+U33+U35+U36+U38+U39 -> 0 | X4: 5 | AA4: =Z32+Z33+Z35+Z36+Z38+Z39 -> 0 | AC4: 6 | AF4: =AE32+AE33+AE35+AE36+AE38+AE39 -> 0 | AH4: 7 | AK4: =AJ32+AJ33+AJ35+AJ36+AJ38+AJ39 -> 0 | AM4: 8 | AP4: =AO32+AO33+AO35+AO36+AO38+AO39 -> 0 | AR4: 9 | AU4: =AT32+AT33+AT35+AT36+AT38+AT39 -> 0 | AW4: 10 | AZ4: =AY32+AY33+AY35+AY36+AY38+AY39 -> 0 | BB4: 11 | BE4: =BD32+BD33+BD35+BD36+BD38+BD39 -> 0 | BG4: 12 | BJ4: =BI32+BI33+BI35+BI36+BI38+BI39 -> 0 | BL4: 13 | BO4: =BN32+BN33+BN35+BN36+BN38+BN39 -> 0 | BQ4: 14 | BT4: =BS32+BS33+BS35+BS36+BS38+BS39 -> 0 | BV4: 15 | BY4: =BX32+BX33+BX35+BX36+BX38+BX39 -> 0 | CA4: 16 | CD4: =CC32+CC33+CC35+CC36+CC38+CC39 -> 0 | CF4: 17 | CI4: =CH32+CH33+CH35+CH36+CH38+CH39 -> 0 | CK4: 18 | CN4: =CM32+CM33+CM35+CM36+CM38+CM39 -> 0 | CP4: 19 | CS4: =CR32+CR33+CR35+CR36+CR38+CR39 -> 0 | CU4: 20 | CX4: =CW32+CW33+CW35+CW36+CW38+CW39 -> 0 | CZ4: 21 | DC4: =DB32+DB33+DB35+DB36+DB38+DB39 -> 0 | DE4: 22 | DH4: =DG32+DG33+DG35+DG36+DG38+DG39 -> 0 | DJ4: 23 | DM4: =DL32+DL33+DL35+DL36+DL38+DL39 -> 0 | DO4: 24 | DR4: =DQ32+DQ33+DQ35+DQ36+DQ38+DQ39 -> 0 | DT4: 25 | DW4: =DV32+DV33+DV35+DV36+DV38+DV39 -> 0 | DY4: 26 | EB4: =EA32+EA33+EA35+EA36+EA38+EA39 -> 0 | ED4: 27 | EG4: =EF32+EF33+EF35+EF36+EF38+EF39 -> 0 | EI4: 28 | EL4: =EK32+EK33+EK35+EK36+EK38+EK39 -> 0 | EN4: 29 | EQ4: =EP32+EP33+EP35+EP36+EP38+EP39 -> 0 | ES4: 30 | EV4: =EU32+EU33+EU35+EU36+EU38+EU39 -> 0
A5: ДСП с отходами,м2 | D5: 2 | E5: кол-во изделий | I5: 1 | J5: кол-во изделий | N5: 5 | O5: кол-во изделий | T5: кол-во изделий | Y5: кол-во изделий | AD5: кол-во изделий | AI5: кол-во изделий | AN5: кол-во изделий | AS5: кол-во изделий | AX5: кол-во изделий | BC5: кол-во изделий | BH5: кол-во изделий | BM5: кол-во изделий | BR5: кол-во изделий | BW5: кол-во изделий | CB5: кол-во изделий | CG5: кол-во изделий | CL5: кол-во изделий | CQ5: кол-во изделий | CV5: кол-во изделий | DA5: кол-во изделий | DF5: кол-во изделий | DK5: кол-во изделий | DP5: кол-во изделий | DU5: кол-во изделий | DZ5: кол-во изделий | EE5: кол-во изделий | EJ5: кол-во изделий | EO5: кол-во изделий | ET5: кол-во изделий
A6: ДСП детали,м2 | D6: длина | E6: ширина | F6: кол-во | G6: метраж | I6: длина | J6: ширина | K6: кол-во | L6: метраж | N6: длина | O6: ширина | P6: кол-во | Q6: метраж | S6: длина | T6: ширина | U6: кол-во | V6: метраж | X6: длина | Y6: ширина | Z6: кол-во | AA6: метраж | AC6: длина | AD6: ширина | AE6: кол-во | AF6: метраж | AH6: длина | AI6: ширина | AJ6: кол-во | AK6: метраж | AM6: длина | AN6: ширина | AO6: кол-во | AP6: метраж | AR6: длина | AS6: ширина | AT6: кол-во | AU6: метраж | AW6: длина | AX6: ширина | AY6: кол-во | AZ6: метраж | BB6: длина | BC6: ширина | BD6: кол-во | BE6: метраж | BG6: длина | BH6: ширина | BI6: кол-во | BJ6: метраж | BL6: длина | BM6: ширина | BN6: кол-во | BO6: метраж | BQ6: длина | BR6: ширина | BS6: кол-во | BT6: метраж | BV6: длина | BW6: ширина | BX6: кол-во | BY6: метраж | CA6: длина | CB6: ширина | CC6: кол-во | CD6: метраж | CF6: длина | CG6: ширина | CH6: кол-во | CI6: метраж | CK6: длина | CL6: ширина | CM6: кол-во | CN6: метраж | CP6: длина | CQ6: ширина | CR6: кол-во | CS6: метраж | CU6: длина | CV6: ширина | CW6: кол-во | CX6: метраж | CZ6: длина | DA6: ширина | DB6: кол-во | DC6: метраж | DE6: длина | DF6: ширина | DG6: кол-во | DH6: метраж | DJ6: длина | DK6: ширина | DL6: кол-во | DM6: метраж | DO6: длина | DP6: ширина | DQ6: кол-во | DR6: метраж | DT6: длина | DU6: ширина | DV6: кол-во | DW6: метраж | DY6: длина | DZ6: ширина | EA6: кол-во | EB6: метраж | ED6: длина | EE6: ширина | EF6: кол-во | EG6: метраж | EI6: длина | EJ6: ширина | EK6: кол-во | EL6: метраж | EN6: длина | EO6: ширина | EP6: кол-во | EQ6: метраж | ES6: длина | ET6: ширина | EU6: кол-во | EV6: метраж
A7: Крой ДСП,м/п | D7: 450 | E7: 100 | F7: 1 | G7: =D7*E7*F7/1000000 -> 0.045 | I7: 500 | J7: 5 | K7: 6 | L7: =I7*J7*K7/1000000 -> 0.015 | N7: 546 | O7: 456 | P7: 15 | Q7: =N7*O7*P7/1000000 -> 3.73464 | V7: =S7*T7*U7/1000000 -> 0 | AA7: =X7*Y7*Z7/1000000 -> 0 | AF7: =AC7*AD7*AE7/1000000 -> 0 | AK7: =AH7*AI7*AJ7/1000000 -> 0 | AP7: =AM7*AN7*AO7/1000000 -> 0 | AU7: =AR7*AS7*AT7/1000000 -> 0 | AZ7: =AW7*AX7*AY7/1000000 -> 0 | BE7: =BB7*BC7*BD7/1000000 -> 0 | BJ7: =BG7*BH7*BI7/1000000 -> 0 | BO7: =BL7*BM7*BN7/1000000 -> 0 | BT7: =BQ7*BR7*BS7/1000000 -> 0 | BY7: =BV7*BW7*BX7/1000000 -> 0 | CD7: =CA7*CB7*CC7/1000000 -> 0 | CI7: =CF7*CG7*CH7/1000000 -> 0 | CN7: =CK7*CL7*CM7/1000000 -> 0 | CS7: =CP7*CQ7*CR7/1000000 -> 0 | CX7: =CU7*CV7*CW7/1000000 -> 0 | DC7: =CZ7*DA7*DB7/1000000 -> 0 | DH7: =DE7*DF7*DG7/1000000 -> 0 | DM7: =DJ7*DK7*DL7/1000000 -> 0 | DR7: =DO7*DP7*DQ7/1000000 -> 0 | DW7: =DT7*DU7*DV7/1000000 -> 0 | EB7: =DY7*DZ7*EA7/1000000 -> 0 | EG7: =ED7*EE7*EF7/1000000 -> 0 | EL7: =EI7*EJ7*EK7/1000000 -> 0 | EQ7: =EN7*EO7*EP7/1000000 -> 0 | EV7: =ES7*ET7*EU7/1000000 -> 0
A8: ДСП детали по таблице | B8: =G31*D5+L31*I5+Q31*N5+V31*S5+AA31*X5+AF31*AC5+AK31*AH5+AP31*AM5+AU31*AR5+AZ31*AW5+BE31*BB5+BJ31*BG5+BO31*BL5+BT31*BQ5+BY31*BV5+CD31*CA5+CI31*CF5+CN31*CK5+CS31*CP5+CX31*CU5+DC31*CZ5+DH31*DE5+DM31*DJ5+DR31*DO5+DW31*DT5+EB31*DY5+EG31*ED5+EL31*EI5+EQ31*EN5+EV31*ES5 -> 26.003228 | D8: 46 | E8: 500 | F8: 2 | G8: =D8*E8*F8/1000000 -> 0.046 | I8: 200 | J8: 12 | K8: 1 | L8: =I8*J8*K8/1000000 -> 0.0024 | N8: 56 | O8: 25 | P8: 2 | Q8: =N8*O8*P8/1000000 -> 0.0028 | V8: =S8*T8*U8/1000000 -> 0 | AA8: =X8*Y8*Z8/1000000 -> 0 | AF8: =AC8*AD8*AE8/1000000 -> 0 | AK8: =AH8*AI8*AJ8/1000000 -> 0 | AP8: =AM8*AN8*AO8/1000000 -> 0 | AU8: =AR8*AS8*AT8/1000000 -> 0 | AZ8: =AW8*AX8*AY8/1000000 -> 0 | BE8: =BB8*BC8*BD8/1000000 -> 0 | BJ8: =BG8*BH8*BI8/1000000 -> 0 | BO8: =BL8*BM8*BN8/1000000 -> 0 | BT8: =BQ8*BR8*BS8/1000000 -> 0 | BY8: =BV8*BW8*BX8/1000000 -> 0 | CD8: =CA8*CB8*CC8/1000000 -> 0 | CI8: =CF8*CG8*CH8/1000000 -> 0 | CN8: =CK8*CL8*CM8/1000000 -> 0 | CS8: =CP8*CQ8*CR8/1000000 -> 0 | CX8: =CU8*CV8*CW8/1000000 -> 0 | DC8: =CZ8*DA8*DB8/1000000 -> 0 | DH8: =DE8*DF8*DG8/1000000 -> 0 | DM8: =DJ8*DK8*DL8/1000000 -> 0 | DR8: =DO8*DP8*DQ8/1000000 -> 0 | DW8: =DT8*DU8*DV8/1000000 -> 0 | EB8: =DY8*DZ8*EA8/1000000 -> 0 | EG8: =ED8*EE8*EF8/1000000 -> 0 | EL8: =EI8*EJ8*EK8/1000000 -> 0 | EQ8: =EN8*EO8*EP8/1000000 -> 0 | EV8: =ES8*ET8*EU8/1000000 -> 0
A9: Коэффициент ДСП | B9: =IF(B6="",0,B5/B6) -> 0 | D9: 822 | E9: 300 | F9: 3 | G9: 0.7398 | I9: 300 | J9: 321 | K9: 2 | L9: 0.1926 | N9: 265 | O9: 356 | P9: 3 | Q9: 0.28302 | V9: 0 | AA9: 0 | AF9: 0 | AK9: 0 | AP9: 0 | AU9: 0 | AZ9: 0 | BE9: 0 | BJ9: 0 | BO9: 0 | BT9: 0 | BY9: 0 | CD9: 0 | CI9: 0 | CN9: 0 | CS9: 0 | CX9: 0 | DC9: 0 | DH9: 0 | DM9: 0 | DR9: 0 | DW9: 0 | EB9: 0 | EG9: 0 | EL9: 0 | EQ9: 0 | EV9: 0
A10: Коэфф кроя ДСП | B10: =IF(B6="",0,B7/B6) -> 0 | D10: 621 | E10: 25 | F10: 6 | G10: 0.09315 | I10: 900 | J10: 500 | K10: 3 | L10: 1.35 | N10: 845 | O10: 78 | P10: 6 | Q10: 0.39546 | V10: 0 | AA10: 0 | AF10: 0 | AK10: 0 | AP10: 0 | AU10: 0 | AZ10: 0 | BE10: 0 | BJ10: 0 | BO10: 0 | BT10: 0 | BY10: 0 | CD10: 0 | CI10: 0 | CN10: 0 | CS10: 0 | CX10: 0 | DC10: 0 | DH10: 0 | DM10: 0 | DR10: 0 | DW10: 0 | EB10: 0 | EG10: 0 | EL10: 0 | EQ10: 0 | EV10: 0
D11: 12 | E11: 5 | F11: 1 | G11: 6e-05 | L11: 0 | N11: 36 | O11: 156 | P11: 2 | Q11: 0.011232 | V11: 0 | AA11: 0 | AF11: 0 | AK11: 0 | AP11: 0 | AU11: 0 | AZ11: 0 | BE11: 0 | BJ11: 0 | BO11: 0 | BT11: 0 | BY11: 0 | CD11: 0 | CI11: 0 | CN11: 0 | CS11: 0 | CX11: 0 | DC11: 0 | DH11: 0 | DM11: 0 | DR11: 0 | DW11: 0 | EB11: 0 | EG11: 0 | EL11: 0 | EQ11: 0 | EV11: 0
A12: Цена ДСП 2 | D12: 56 | E12: 6 | F12: 1 | G12: 0.000336 | L12: 0 | N12: 125 | O12: 365 | P12: 2 | Q12: 0.09125 | V12: 0 | AA12: 0 | AF12: 0 | AK12: 0 | AP12: 0 | AU12: 0 | AZ12: 0 | BE12: 0 | BJ12: 0 | BO12: 0 | BT12: 0 | BY12: 0 | CD12: 0 | CI12: 0 | CN12: 0 | CS12: 0 | CX12: 0 | DC12: 0 | DH12: 0 | DM12: 0 | DR12: 0 | DW12: 0 | EB12: 0 | EG12: 0 | EL12: 0 | EQ12: 0 | EV12: 0
A13: ДСП с отходами,м2 | D13: 36 | E13: 6 | F13: 1 | G13: 0.000216 | L13: 0 | Q13: 0 | V13: 0 | AA13: 0 | AF13: 0 | AK13: 0 | AP13: 0 | AU13: 0 | AZ13: 0 | BE13: 0 | BJ13: 0 | BO13: 0 | BT13: 0 | BY13: 0 | CD13: 0 | CI13: 0 | CN13: 0 | CS13: 0 | CX13: 0 | DC13: 0 | DH13: 0 | DM13: 0 | DR13: 0 | DW13: 0 | EB13: 0 | EG13: 0 | EL13: 0 | EQ13: 0 | EV13: 0
A14: ДСП детали,м2 | D14: 36 | E14: 6 | F14: 1 | G14: 0.000216 | L14: 0 | Q14: 0 | V14: 0 | AA14: 0 | AF14: 0 | AK14: 0 | AP14: 0 | AU14: 0 | AZ14: 0 | BE14: 0 | BJ14: 0 | BO14: 0 | BT14: 0 | BY14: 0 | CD14: 0 | CI14: 0 | CN14: 0 | CS14: 0 | CX14: 0 | DC14: 0 | DH14: 0 | DM14: 0 | DR14: 0 | DW14: 0 | EB14: 0 | EG14: 0 | EL14: 0 | EQ14: 0 | EV14: 0
A15: Крой ДСП,м/п | D15: 15 | E15: 2 | F15: 1 | G15: 3e-05 | L15: 0 | Q15: 0 | V15: 0 | AA15: 0 | AF15: 0 | AK15: 0 | AP15: 0 | AU15: 0 | AZ15: 0 | BE15: 0 | BJ15: 0 | BO15: 0 | BT15: 0 | BY15: 0 | CD15: 0 | CI15: 0 | CN15: 0 | CS15: 0 | CX15: 0 | DC15: 0 | DH15: 0 | DM15: 0 | DR15: 0 | DW15: 0 | EB15: 0 | EG15: 0 | EL15: 0 | EQ15: 0 | EV15: 0
A16: ДСП детали по таблице | B16: =G37*D5+L37*I5+Q37*N5+V37*S5+AA37*X5+AF37*AC5+AK37*AH5+AP37*AM5+AU37*AR5+AZ37*AW5+BE37*BB5+BJ37*BG5+BO37*BL5+BT37*BQ5+BY37*BV5+CD37*CA5+CI37*CF5+CN37*CK5+CS37*CP5+CX37*CU5+DC37*CZ5+DH37*DE5+DM37*DJ5+DR37*DO5+DW37*DT5+EB37*DY5+EG37*ED5+EL37*EI5+EQ37*EN5+EV37*ES5 -> 0.171644 | D16: 45 | E16: 3 | F16: 1 | G16: 0.000135 | L16: 0 | Q16: 0 | V16: 0 | AA16: 0 | AF16: 0 | AK16: 0 | AP16: 0 | AU16: 0 | AZ16: 0 | BE16: 0 | BJ16: 0 | BO16: 0 | BT16: 0 | BY16: 0 | CD16: 0 | CI16: 0 | CN16: 0 | CS16: 0 | CX16: 0 | DC16: 0 | DH16: 0 | DM16: 0 | DR16: 0 | DW16: 0 | EB16: 0 | EG16: 0 | EL16: 0 | EQ16: 0 | EV16: 0
A17: Коэффициент ДСП | B17: =IF(B14="",0,B13/B14) -> 0 | D17: 25 | E17: 3 | F17: 1 | G17: 7.5e-05 | L17: 0 | Q17: 0 | V17: 0 | AA17: 0 | AF17: 0 | AK17: 0 | AP17: 0 | AU17: 0 | AZ17: 0 | BE17: 0 | BJ17: 0 | BO17: 0 | BT17: 0 | BY17: 0 | CD17: 0 | CI17: 0 | CN17: 0 | CS17: 0 | CX17: 0 | DC17: 0 | DH17: 0 | DM17: 0 | DR17: 0 | DW17: 0 | EB17: 0 | EG17: 0 | EL17: 0 | EQ17: 0 | EV17: 0
A18: Коэфф кроя ДСП | B18: =IF(B14="",0,B15/B14) -> 0 | D18: 48 | E18: 3 | F18: 1 | G18: 0.000144 | L18: 0 | Q18: 0 | V18: 0 | AA18: 0 | AF18: 0 | AK18: 0 | AP18: 0 | AU18: 0 | AZ18: 0 | BE18: 0 | BJ18: 0 | BO18: 0 | BT18: 0 | BY18: 0 | CD18: 0 | CI18: 0 | CN18: 0 | CS18: 0 | CX18: 0 | DC18: 0 | DH18: 0 | DM18: 0 | DR18: 0 | DW18: 0 | EB18: 0 | EG18: 0 | EL18: 0 | EQ18: 0 | EV18: 0
D19: 56 | E19: 3 | F19: 1 | G19: 0.000168 | L19: 0 | Q19: 0 | V19: 0 | AA19: 0 | AF19: 0 | AK19: 0 | AP19: 0 | AU19: 0 | AZ19: 0 | BE19: 0 | BJ19: 0 | BO19: 0 | BT19: 0 | BY19: 0 | CD19: 0 | CI19: 0 | CN19: 0 | CS19: 0 | CX19: 0 | DC19: 0 | DH19: 0 | DM19: 0 | DR19: 0 | DW19: 0 | EB19: 0 | EG19: 0 | EL19: 0 | EQ19: 0 | EV19: 0
A20: Цена ДВП | B20: 2.2 | D20: 48 | E20: 3 | F20: 1 | G20: 0.000144 | L20: 0 | Q20: 0 | V20: 0 | AA20: 0 | AF20: 0 | AK20: 0 | AP20: 0 | AU20: 0 | AZ20: 0 | BE20: 0 | BJ20: 0 | BO20: 0 | BT20: 0 | BY20: 0 | CD20: 0 | CI20: 0 | CN20: 0 | CS20: 0 | CX20: 0 | DC20: 0 | DH20: 0 | DM20: 0 | DR20: 0 | DW20: 0 | EB20: 0 | EG20: 0 | EL20: 0 | EQ20: 0 | EV20: 0
A21: ДВП с отходами,м2 | D21: 45 | E21: 3 | F21: 1 | G21: 0.000135 | L21: 0 | Q21: 0 | V21: 0 | AA21: 0 | AF21: 0 | AK21: 0 | AP21: 0 | AU21: 0 | AZ21: 0 | BE21: 0 | BJ21: 0 | BO21: 0 | BT21: 0 | BY21: 0 | CD21: 0 | CI21: 0 | CN21: 0 | CS21: 0 | CX21: 0 | DC21: 0 | DH21: 0 | DM21: 0 | DR21: 0 | DW21: 0 | EB21: 0 | EG21: 0 | EL21: 0 | EQ21: 0 | EV21: 0
A22: ДВП детали,м2 | D22: ДВП | I22: ДВП | N22: ДВП | S22: ДВП | X22: ДВП | AC22: ДВП | AH22: ДВП | AM22: ДВП | AR22: ДВП | AW22: ДВП | BB22: ДВП | BG22: ДВП | BL22: ДВП | BQ22: ДВП | BV22: ДВП | CA22: ДВП | CF22: ДВП | CK22: ДВП | CP22: ДВП | CU22: ДВП | CZ22: ДВП | DE22: ДВП | DJ22: ДВП | DO22: ДВП | DT22: ДВП | DY22: ДВП | ED22: ДВП | EI22: ДВП | EN22: ДВП | ES22: ДВП
A23: Крой ДВП,м/п | D23: 41 | E23: 41 | F23: 2 | G23: 0.003362 | L23: =I23*J23*K23/1000000 -> 0 | N23: 78 | O23: 78 | P23: 1 | Q23: =N23*O23*P23/1000000 -> 0.006084 | V23: =S23*T23*U23/1000000 -> 0 | AA23: =X23*Y23*Z23/1000000 -> 0 | AF23: =AC23*AD23*AE23/1000000 -> 0 | AK23: =AH23*AI23*AJ23/1000000 -> 0 | AP23: =AM23*AN23*AO23/1000000 -> 0 | AU23: =AR23*AS23*AT23/1000000 -> 0 | AZ23: =AW23*AX23*AY23/1000000 -> 0 | BE23: =BB23*BC23*BD23/1000000 -> 0 | BJ23: =BG23*BH23*BI23/1000000 -> 0 | BO23: =BL23*BM23*BN23/1000000 -> 0 | BT23: =BQ23*BR23*BS23/1000000 -> 0 | BY23: =BV23*BW23*BX23/1000000 -> 0 | CD23: =CA23*CB23*CC23/1000000 -> 0 | CI23: =CF23*CG23*CH23/1000000 -> 0 | CN23: =CK23*CL23*CM23/1000000 -> 0 | CS23: =CP23*CQ23*CR23/1000000 -> 0 | CX23: =CU23*CV23*CW23/1000000 -> 0 | DC23: =CZ23*DA23*DB23/1000000 -> 0 | DE23: 465 | DF23: 880 | DG23: 1 | DH23: =DE23*DF23*DG23/1000000 -> 0.4092 | DJ23: 1820 | DK23: 880 | DL23: 1 | DM23: =DJ23*DK23*DL23/1000000 -> 1.6016 | DO23: 465 | DP23: 880 | DQ23: 1 | DR23: =DO23*DP23*DQ23/1000000 -> 0.4092 | DW23: =DT23*DU23*DV23/1000000 -> 0 | EB23: =DY23*DZ23*EA23/1000000 -> 0 | EG23: =ED23*EE23*EF23/1000000 -> 0 | EL23: =EI23*EJ23*EK23/1000000 -> 0 | EQ23: =EN23*EO23*EP23/1000000 -> 0 | EV23: =ES23*ET23*EU23/1000000 -> 0
A24: ДВП детали по таблице | B24: =G34*D5+L34*I5+Q34*N5+V34*S5+AA34*X5+AF34*AC5+AK34*AH5+AP34*AM5+AU34*AR5+AZ34*AW5+BE34*BB5+BJ34*BG5+BO34*BL5+BT34*BQ5+BY34*BV5+CD34*CA5+CI34*CF5+CN34*CK5+CS34*CP5+CX34*CU5+DC34*CZ5+DH34*DE5+DM34*DJ5+DR34*DO5+DW34*DT5+EB34*DY5+EG34*ED5+EL34*EI5+EQ34*EN5+EV34*ES5 -> 0.042607 | D24: 12 | E24: 12 | F24: 1 | G24: 0.000144 | L24: 0 | N24: 45 | O24: 23 | P24: 1 | Q24: 0.001035 | V24: 0 | AA24: 0 | AF24: 0 | AK24: 0 | AP24: 0 | AU24: 0 | AZ24: 0 | BE24: 0 | BJ24: 0 | BO24: 0 | BT24: 0 | BY24: 0 | CD24: 0 | CI24: 0 | CN24: 0 | CS24: 0 | CX24: 0 | DC24: 0 | DH24: 0 | DM24: 0 | DR24: 0 | DW24: 0 | EB24: 0 | EG24: 0 | EL24: 0 | EQ24: 0 | EV24: 0
A25: Коэффициент ДВП | B25: =IF(B22="",0,B21/B22) -> 0 | G25: 0 | L25: 0 | Q25: 0 | V25: 0 | AA25: 0 | AF25: 0 | AK25: 0 | AP25: 0 | AU25: 0 | AZ25: 0 | BE25: 0 | BJ25: 0 | BO25: 0 | BT25: 0 | BY25: 0 | CD25: 0 | CI25: 0 | CN25: 0 | CS25: 0 | CX25: 0 | DC25: 0 | DH25: 0 | DM25: 0 | DR25: 0 | DW25: 0 | EB25: 0 | EG25: 0 | EL25: 0 | EQ25: 0 | EV25: 0
A26: Коэфф кроя ДВП | B26: =IF(B22="",0,B23/B22) -> 0 | D26: ДСП 2 | I26: ДСП 2 | N26: ДСП 2 | S26: ДСП 2 | X26: ДСП 2 | AC26: ДСП 2 | AH26: ДСП 2 | AM26: ДСП 2 | AR26: ДСП 2 | AW26: ДСП 2 | BB26: ДСП 2 | BG26: ДСП 2 | BL26: ДСП 2 | BQ26: ДСП 2 | BV26: ДСП 2 | CA26: ДСП 2 | CF26: ДСП 2 | CK26: ДСП 2 | CP26: ДСП 2 | CU26: ДСП 2 | CZ26: ДСП 2 | DE26: ДСП 2 | DJ26: ДСП 2 | DO26: ДСП 2 | DT26: ДСП 2 | DY26: ДСП 2 | ED26: ДСП 2 | EI26: ДСП 2 | EN26: ДСП 2 | ES26: ДСП 2
D27: 14 | E27: 23 | F27: 1 | G27: =D27*E27*F27/1000000 -> 0.000322 | L27: =I27*J27*K27/1000000 -> 0 | N27: 456 | O27: 25 | P27: 3 | Q27: =N27*O27*P27/1000000 -> 0.0342 | V27: =S27*T27*U27/1000000 -> 0 | AA27: =X27*Y27*Z27/1000000 -> 0 | AF27: =AC27*AD27*AE27/1000000 -> 0 | AK27: =AH27*AI27*AJ27/1000000 -> 0 | AP27: =AM27*AN27*AO27/1000000 -> 0 | AU27: =AR27*AS27*AT27/1000000 -> 0 | AZ27: =AW27*AX27*AY27/1000000 -> 0 | BB27: 900 | BC27: 700 | BD27: 1 | BE27: =BB27*BC27*BD27/1000000 -> 0.63 | BJ27: =BG27*BH27*BI27/1000000 -> 0 | BO27: =BL27*BM27*BN27/1000000 -> 0 | BT27: =BQ27*BR27*BS27/1000000 -> 0 | BY27: =BV27*BW27*BX27/1000000 -> 0 | CD27: =CA27*CB27*CC27/1000000 -> 0 | CI27: =CF27*CG27*CH27/1000000 -> 0 | CN27: =CK27*CL27*CM27/1000000 -> 0 | CS27: =CP27*CQ27*CR27/1000000 -> 0 | CX27: =CU27*CV27*CW27/1000000 -> 0 | DC27: =CZ27*DA27*DB27/1000000 -> 0 | DH27: =DE27*DF27*DG27/1000000 -> 0 | DM27: =DJ27*DK27*DL27/1000000 -> 0 | DR27: =DO27*DP27*DQ27/1000000 -> 0 | DW27: =DT27*DU27*DV27/1000000 -> 0 | EB27: =DY27*DZ27*EA27/1000000 -> 0 | EG27: =ED27*EE27*EF27/1000000 -> 0 | EL27: =EI27*EJ27*EK27/1000000 -> 0 | EQ27: =EN27*EO27*EP27/1000000 -> 0 | EV27: =ES27*ET27*EU27/1000000 -> 0
A28: Стоимость ДСП заказа | B28: =G4*D5+L4*K5+Q4*P5+V4*U5+AA4*Z5+AF4*AE5+AK4*AJ5+AP4*AO5+AU4*AT5+AZ4*AY5+BE4*BD5+BJ4*BI5+BO4*BN5+BT4*BS5+BY4*BX5+CD4*CC5+CI4*CH5+CN4*CM5+CS4*CR5+CX4*CW5+DC4*DB5 -> 0 | G28: 0 | L28: 0 | Q28: 0 | V28: 0 | AA28: 0 | AF28: 0 | AK28: 0 | AP28: 0 | AU28: 0 | AZ28: 0 | BE28: 0 | BJ28: 0 | BO28: 0 | BT28: 0 | BY28: 0 | CD28: 0 | CI28: 0 | CN28: 0 | CS28: 0 | CX28: 0 | DC28: 0 | DH28: 0 | DM28: 0 | DR28: 0 | DW28: 0 | EB28: 0 | EG28: 0 | EL28: 0 | EQ28: 0 | EV28: 0
G29: 0 | L29: 0 | Q29: 0 | V29: 0 | AA29: 0 | AF29: 0 | AK29: 0 | AP29: 0 | AU29: 0 | AZ29: 0 | BE29: 0 | BJ29: 0 | BO29: 0 | BT29: 0 | BY29: 0 | CD29: 0 | CI29: 0 | CN29: 0 | CS29: 0 | CX29: 0 | DC29: 0 | DH29: 0 | DM29: 0 | DR29: 0 | DW29: 0 | EB29: 0 | EG29: 0 | EL29: 0 | EQ29: 0 | EV29: 0
F30: $ | G30: м2,м/п | K30: $ | L30: м2,м/п | P30: $ | Q30: м2,м/п | U30: $ | V30: м2,м/п | Z30: $ | AA30: м2,м/п | AE30: $ | AF30: м2,м/п | AJ30: $ | AK30: м2,м/п | AO30: $ | AP30: м2,м/п | AT30: $ | AU30: м2,м/п | AY30: $ | AZ30: м2,м/п | BD30: $ | BE30: м2,м/п | BI30: $ | BJ30: м2,м/п | BN30: $ | BO30: м2,м/п | BS30: $ | BT30: м2,м/п | BX30: $ | BY30: м2,м/п | CC30: $ | CD30: м2,м/п | CH30: $ | CI30: м2,м/п | CM30: $ | CN30: м2,м/п | CR30: $ | CS30: м2,м/п | CW30: $ | CX30: м2,м/п | DB30: $ | DC30: м2,м/п | DG30: $ | DH30: м2,м/п | DL30: $ | DM30: м2,м/п | DQ30: $ | DR30: м2,м/п | DV30: $ | DW30: м2,м/п | EA30: $ | EB30: м2,м/п | EF30: $ | EG30: м2,м/п | EK30: $ | EL30: м2,м/п | EP30: $ | EQ30: м2,м/п | EU30: $ | EV30: м2,м/п
D31: ДСП в изделии | F31: =G31*$B$4 -> 0 | G31: =SUM(G7:G21) -> 0.925609 | I31: ДСП в изделии | K31: =L31*$B$4 -> 0 | L31: =SUM(L7:L21) -> 1.56 | N31: ДСП в изделии | P31: =Q31*$B$4 -> 0 | Q31: =SUM(Q7:Q21) -> 4.518402 | S31: ДСП в изделии | U31: =V31*$B$4 -> 0 | V31: =SUM(V7:V21) -> 0 | X31: ДСП в изделии | Z31: =AA31*$B$4 -> 0 | AA31: =SUM(AA7:AA21) -> 0 | AC31: ДСП в изделии | AE31: =AF31*$B$4 -> 0 | AF31: =SUM(AF7:AF21) -> 0 | AH31: ДСП в изделии | AJ31: =AK31*$B$4 -> 0 | AK31: =SUM(AK7:AK21) -> 0 | AM31: ДСП в изделии | AO31: =AP31*$B$4 -> 0 | AP31: =SUM(AP7:AP21) -> 0 | AR31: ДСП в изделии | AT31: =AU31*$B$4 -> 0 | AU31: =SUM(AU7:AU21) -> 0 | AW31: ДСП в изделии | AY31: =AZ31*$B$4 -> 0 | AZ31: =SUM(AZ7:AZ21) -> 0 | BB31: ДСП в изделии | BD31: =BE31*$B$4 -> 0 | BE31: =SUM(BE7:BE21) -> 0 | BG31: ДСП в изделии | BI31: =BJ31*$B$4 -> 0 | BJ31: =SUM(BJ7:BJ21) -> 0 | BL31: ДСП в изделии | BN31: =BO31*$B$4 -> 0 | BO31: =SUM(BO7:BO21) -> 0 | BQ31: ДСП в изделии | BS31: =BT31*$B$4 -> 0 | BT31: =SUM(BT7:BT21) -> 0 | BV31: ДСП в изделии | BX31: =BY31*$B$4 -> 0 | BY31: =SUM(BY7:BY21) -> 0 | CA31: ДСП в изделии | CC31: =CD31*$B$4 -> 0 | CD31: =SUM(CD7:CD21) -> 0 | CF31: ДСП в изделии | CH31: =CI31*$B$4 -> 0 | CI31: =SUM(CI7:CI21) -> 0 | CK31: ДСП в изделии | CM31: =CN31*$B$4 -> 0 | CN31: =SUM(CN7:CN21) -> 0 | CP31: ДСП в изделии | CR31: =CS31*$B$4 -> 0 | CS31: =SUM(CS7:CS21) -> 0 | CU31: ДСП в изделии | CW31: =CX31*$B$4 -> 0 | CX31: =SUM(CX7:CX21) -> 0 | CZ31: ДСП в изделии | DB31: =DC31*$B$4 -> 0 | DC31: =SUM(DC7:DC21) -> 0 | DE31: ДСП в изделии | DG31: =DH31*$B$4 -> 0 | DH31: =SUM(DH7:DH21) -> 0 | DJ31: ДСП в изделии | DL31: =DM31*$B$4 -> 0 | DM31: =SUM(DM7:DM21) -> 0 | DO31: ДСП в изделии | DQ31: =DR31*$B$4 -> 0 | DR31: =SUM(DR7:DR21) -> 0 | DT31: ДСП в изделии | DV31: =DW31*$B$4 -> 0 | DW31: =SUM(DW7:DW21) -> 0 | DY31: ДСП в изделии | EA31: =EB31*$B$4 -> 0 | EB31: =SUM(EB7:EB21) -> 0 | ED31: ДСП в изделии | EF31: =EG31*$B$4 -> 0 | EG31: =SUM(EG7:EG21) -> 0 | EI31: ДСП в изделии | EK31: =EL31*$B$4 -> 0 | EL31: =SUM(EL7:EL21) -> 0 | EN31: ДСП в изделии | EP31: =EQ31*$B$4 -> 0 | EQ31: =SUM(EQ7:EQ21) -> 0 | ES31: ДСП в изделии | EU31: =EV31*$B$4 -> 0 | EV31: =SUM(EV7:EV21) -> 0
D32: ДСП с отходами | F32: =G32*$B$4 -> 0 | G32: =G31*$B$9 -> 0 | I32: ДСП с отходами | K32: =L32*$B$4 -> 0 | L32: =L31*$B$9 -> 0 | N32: ДСП с отходами | P32: =Q32*$B$4 -> 0 | Q32: =Q31*$B$9 -> 0 | S32: ДСП с отходами | U32: =V32*$B$4 -> 0 | V32: =V31*$B$9 -> 0 | X32: ДСП с отходами | Z32: =AA32*$B$4 -> 0 | AA32: =AA31*$B$9 -> 0 | AC32: ДСП с отходами | AE32: =AF32*$B$4 -> 0 | AF32: =AF31*$B$9 -> 0 | AH32: ДСП с отходами | AJ32: =AK32*$B$4 -> 0 | AK32: =AK31*$B$9 -> 0 | AM32: ДСП с отходами | AO32: =AP32*$B$4 -> 0 | AP32: =AP31*$B$9 -> 0 | AR32: ДСП с отходами | AT32: =AU32*$B$4 -> 0 | AU32: =AU31*$B$9 -> 0 | AW32: ДСП с отходами | AY32: =AZ32*$B$4 -> 0 | AZ32: =AZ31*$B$9 -> 0 | BB32: ДСП с отходами | BD32: =BE32*$B$4 -> 0 | BE32: =BE31*$B$9 -> 0 | BG32: ДСП с отходами | BI32: =BJ32*$B$4 -> 0 | BJ32: =BJ31*$B$9 -> 0 | BL32: ДСП с отходами | BN32: =BO32*$B$4 -> 0 | BO32: =BO31*$B$9 -> 0 | BQ32: ДСП с отходами | BS32: =BT32*$B$4 -> 0 | BT32: =BT31*$B$9 -> 0 | BV32: ДСП с отходами | BX32: =BY32*$B$4 -> 0 | BY32: =BY31*$B$9 -> 0 | CA32: ДСП с отходами | CC32: =CD32*$B$4 -> 0 | CD32: =CD31*$B$9 -> 0 | CF32: ДСП с отходами | CH32: =CI32*$B$4 -> 0 | CI32: =CI31*$B$9 -> 0 | CK32: ДСП с отходами | CM32: =CN32*$B$4 -> 0 | CN32: =CN31*$B$9 -> 0 | CP32: ДСП с отходами | CR32: =CS32*$B$4 -> 0 | CS32: =CS31*$B$9 -> 0 | CU32: ДСП с отходами | CW32: =CX32*$B$4 -> 0 | CX32: =CX31*$B$9 -> 0 | CZ32: ДСП с отходами | DB32: =DC32*$B$4 -> 0 | DC32: =DC31*$B$9 -> 0 | DE32: ДСП с отходами | DG32: =DH32*$B$4 -> 0 | DH32: =DH31*$B$9 -> 0 | DJ32: ДСП с отходами | DL32: =DM32*$B$4 -> 0 | DM32: =DM31*$B$9 -> 0 | DO32: ДСП с отходами | DQ32: =DR32*$B$4 -> 0 | DR32: =DR31*$B$9 -> 0 | DT32: ДСП с отходами | DV32: =DW32*$B$4 -> 0 | DW32: =DW31*$B$9 -> 0 | DY32: ДСП с отходами | EA32: =EB32*$B$4 -> 0 | EB32: =EB31*$B$9 -> 0 | ED32: ДСП с отходами | EF32: =EG32*$B$4 -> 0 | EG32: =EG31*$B$9 -> 0 | EI32: ДСП с отходами | EK32: =EL32*$B$4 -> 0 | EL32: =EL31*$B$9 -> 0 | EN32: ДСП с отходами | EP32: =EQ32*$B$4 -> 0 | EQ32: =EQ31*$B$9 -> 0 | ES32: ДСП с отходами | EU32: =EV32*$B$4 -> 0 | EV32: =EV31*$B$9 -> 0
D33: крой ДСП | F33: =G33*$B$1 -> 0 | G33: =G31*$B$10 -> 0 | I33: крой ДСП | K33: =L33*$B$1 -> 0 | L33: =L31*$B$10 -> 0 | N33: крой ДСП | P33: =Q33*$B$1 -> 0 | Q33: =Q31*$B$10 -> 0 | S33: крой ДСП | U33: =V33*$B$1 -> 0 | V33: =V31*$B$10 -> 0 | X33: крой ДСП | Z33: =AA33*$B$1 -> 0 | AA33: =AA31*$B$10 -> 0 | AC33: крой ДСП | AE33: =AF33*$B$1 -> 0 | AF33: =AF31*$B$10 -> 0 | AH33: крой ДСП | AJ33: =AK33*$B$1 -> 0 | AK33: =AK31*$B$10 -> 0 | AM33: крой ДСП | AO33: =AP33*$B$1 -> 0 | AP33: =AP31*$B$10 -> 0 | AR33: крой ДСП | AT33: =AU33*$B$1 -> 0 | AU33: =AU31*$B$10 -> 0 | AW33: крой ДСП | AY33: =AZ33*$B$1 -> 0 | AZ33: =AZ31*$B$10 -> 0 | BB33: крой ДСП | BD33: =BE33*$B$1 -> 0 | BE33: =BE31*$B$10 -> 0 | BG33: крой ДСП | BI33: =BJ33*$B$1 -> 0 | BJ33: =BJ31*$B$10 -> 0 | BL33: крой ДСП | BN33: =BO33*$B$1 -> 0 | BO33: =BO31*$B$10 -> 0 | BQ33: крой ДСП | BS33: =BT33*$B$1 -> 0 | BT33: =BT31*$B$10 -> 0 | BV33: крой ДСП | BX33: =BY33*$B$1 -> 0 | BY33: =BY31*$B$10 -> 0 | CA33: крой ДСП | CC33: =CD33*$B$1 -> 0 | CD33: =CD31*$B$10 -> 0 | CF33: крой ДСП | CH33: =CI33*$B$1 -> 0 | CI33: =CI31*$B$10 -> 0 | CK33: крой ДСП | CM33: =CN33*$B$1 -> 0 | CN33: =CN31*$B$10 -> 0 | CP33: крой ДСП | CR33: =CS33*$B$1 -> 0 | CS33: =CS31*$B$10 -> 0 | CU33: крой ДСП | CW33: =CX33*$B$1 -> 0 | CX33: =CX31*$B$10 -> 0 | CZ33: крой ДСП | DB33: =DC33*$B$1 -> 0 | DC33: =DC31*$B$10 -> 0 | DE33: крой ДСП | DG33: =DH33*$B$1 -> 0 | DH33: =DH31*$B$10 -> 0 | DJ33: крой ДСП | DL33: =DM33*$B$1 -> 0 | DM33: =DM31*$B$10 -> 0 | DO33: крой ДСП | DQ33: =DR33*$B$1 -> 0 | DR33: =DR31*$B$10 -> 0 | DT33: крой ДСП | DV33: =DW33*$B$1 -> 0 | DW33: =DW31*$B$10 -> 0 | DY33: крой ДСП | EA33: =EB33*$B$1 -> 0 | EB33: =EB31*$B$10 -> 0 | ED33: крой ДСП | EF33: =EG33*$B$1 -> 0 | EG33: =EG31*$B$10 -> 0 | EI33: крой ДСП | EK33: =EL33*$B$1 -> 0 | EL33: =EL31*$B$10 -> 0 | EN33: крой ДСП | EP33: =EQ33*$B$1 -> 0 | EQ33: =EQ31*$B$10 -> 0 | ES33: крой ДСП | EU33: =EV33*$B$1 -> 0 | EV33: =EV31*$B$10 -> 0
D34: ДВП в изделии | F34: =G34*$B$20 -> 0.0077132 | G34: =SUM(G23:G25) -> 0.003506 | I34: ДВП в изделии | K34: =L34*$B$20 -> 0 | L34: =SUM(L23:L25) -> 0 | N34: ДВП в изделии | P34: =Q34*$B$20 -> 0.0156618 | Q34: =SUM(Q23:Q25) -> 0.007119 | S34: ДВП в изделии | U34: =V34*$B$20 -> 0 | V34: =SUM(V23:V25) -> 0 | X34: ДВП в изделии | Z34: =AA34*$B$20 -> 0 | AA34: =SUM(AA23:AA25) -> 0 | AC34: ДВП в изделии | AE34: =AF34*$B$20 -> 0 | AF34: =SUM(AF23:AF25) -> 0 | AH34: ДВП в изделии | AJ34: =AK34*$B$20 -> 0 | AK34: =SUM(AK23:AK25) -> 0 | AM34: ДВП в изделии | AO34: =AP34*$B$20 -> 0 | AP34: =SUM(AP23:AP25) -> 0 | AR34: ДВП в изделии | AT34: =AU34*$B$20 -> 0 | AU34: =SUM(AU23:AU25) -> 0 | AW34: ДВП в изделии | AY34: =AZ34*$B$20 -> 0 | AZ34: =SUM(AZ23:AZ25) -> 0 | BB34: ДВП в изделии | BD34: =BE34*$B$20 -> 0 | BE34: =SUM(BE23:BE25) -> 0 | BG34: ДВП в изделии | BI34: =BJ34*$B$20 -> 0 | BJ34: =SUM(BJ23:BJ25) -> 0 | BL34: ДВП в изделии | BN34: =BO34*$B$20 -> 0 | BO34: =SUM(BO23:BO25) -> 0 | BQ34: ДВП в изделии | BS34: =BT34*$B$20 -> 0 | BT34: =SUM(BT23:BT25) -> 0 | BV34: ДВП в изделии | BX34: =BY34*$B$20 -> 0 | BY34: =SUM(BY23:BY25) -> 0 | CA34: ДВП в изделии | CC34: =CD34*$B$20 -> 0 | CD34: =SUM(CD23:CD25) -> 0 | CF34: ДВП в изделии | CH34: =CI34*$B$20 -> 0 | CI34: =SUM(CI23:CI25) -> 0 | CK34: ДВП в изделии | CM34: =CN34*$B$20 -> 0 | CN34: =SUM(CN23:CN25) -> 0 | CP34: ДВП в изделии | CR34: =CS34*$B$20 -> 0 | CS34: =SUM(CS23:CS25) -> 0 | CU34: ДВП в изделии | CW34: =CX34*$B$20 -> 0 | CX34: =SUM(CX23:CX25) -> 0 | CZ34: ДВП в изделии | DB34: =DC34*$B$20 -> 0 | DC34: =SUM(DC23:DC25) -> 0 | DE34: ДВП в изделии | DG34: =DH34*$B$20 -> 0.90024 | DH34: =SUM(DH23:DH25) -> 0.4092 | DJ34: ДВП в изделии | DL34: =DM34*$B$20 -> 3.52352 | DM34: =SUM(DM23:DM25) -> 1.6016 | DO34: ДВП в изделии | DQ34: =DR34*$B$20 -> 0.90024 | DR34: =SUM(DR23:DR25) -> 0.4092 | DT34: ДВП в изделии | DV34: =DW34*$B$20 -> 0 | DW34: =SUM(DW23:DW25) -> 0 | DY34: ДВП в изделии | EA34: =EB34*$B$20 -> 0 | EB34: =SUM(EB23:EB25) -> 0 | ED34: ДВП в изделии | EF34: =EG34*$B$20 -> 0 | EG34: =SUM(EG23:EG25) -> 0 | EI34: ДВП в изделии | EK34: =EL34*$B$20 -> 0 | EL34: =SUM(EL23:EL25) -> 0 | EN34: ДВП в изделии | EP34: =EQ34*$B$20 -> 0 | EQ34: =SUM(EQ23:EQ25) -> 0 | ES34: ДВП в изделии | EU34: =EV34*$B$20 -> 0 | EV34: =SUM(EV23:EV25) -> 0
D35: ДВП с отходами | F35: =G35*$B$20 -> 0 | G35: =G34*$B$25 -> 0 | I35: ДВП с отходами | K35: =L35*$B$20 -> 0 | L35: =L34*$B$25 -> 0 | N35: ДВП с отходами | P35: =Q35*$B$20 -> 0 | Q35: =Q34*$B$25 -> 0 | S35: ДВП с отходами | U35: =V35*$B$20 -> 0 | V35: =V34*$B$25 -> 0 | X35: ДВП с отходами | Z35: =AA35*$B$20 -> 0 | AA35: =AA34*$B$25 -> 0 | AC35: ДВП с отходами | AE35: =AF35*$B$20 -> 0 | AF35: =AF34*$B$25 -> 0 | AH35: ДВП с отходами | AJ35: =AK35*$B$20 -> 0 | AK35: =AK34*$B$25 -> 0 | AM35: ДВП с отходами | AO35: =AP35*$B$20 -> 0 | AP35: =AP34*$B$25 -> 0 | AR35: ДВП с отходами | AT35: =AU35*$B$20 -> 0 | AU35: =AU34*$B$25 -> 0 | AW35: ДВП с отходами | AY35: =AZ35*$B$20 -> 0 | AZ35: =AZ34*$B$25 -> 0 | BB35: ДВП с отходами | BD35: =BE35*$B$20 -> 0 | BE35: =BE34*$B$25 -> 0 | BG35: ДВП с отходами | BI35: =BJ35*$B$20 -> 0 | BJ35: =BJ34*$B$25 -> 0 | BL35: ДВП с отходами | BN35: =BO35*$B$20 -> 0 | BO35: =BO34*$B$25 -> 0 | BQ35: ДВП с отходами | BS35: =BT35*$B$20 -> 0 | BT35: =BT34*$B$25 -> 0 | BV35: ДВП с отходами | BX35: =BY35*$B$20 -> 0 | BY35: =BY34*$B$25 -> 0 | CA35: ДВП с отходами | CC35: =CD35*$B$20 -> 0 | CD35: =CD34*$B$25 -> 0 | CF35: ДВП с отходами | CH35: =CI35*$B$20 -> 0 | CI35: =CI34*$B$25 -> 0 | CK35: ДВП с отходами | CM35: =CN35*$B$20 -> 0 | CN35: =CN34*$B$25 -> 0 | CP35: ДВП с отходами | CR35: =CS35*$B$20 -> 0 | CS35: =CS34*$B$25 -> 0 | CU35: ДВП с отходами | CW35: =CX35*$B$20 -> 0 | CX35: =CX34*$B$25 -> 0 | CZ35: ДВП с отходами | DB35: =DC35*$B$20 -> 0 | DC35: =DC34*$B$25 -> 0 | DE35: ДВП с отходами | DG35: =DH35*$B$20 -> 0 | DH35: =DH34*$B$25 -> 0 | DJ35: ДВП с отходами | DL35: =DM35*$B$20 -> 0 | DM35: =DM34*$B$25 -> 0 | DO35: ДВП с отходами | DQ35: =DR35*$B$20 -> 0 | DR35: =DR34*$B$25 -> 0 | DT35: ДВП с отходами | DV35: =DW35*$B$20 -> 0 | DW35: =DW34*$B$25 -> 0 | DY35: ДВП с отходами | EA35: =EB35*$B$20 -> 0 | EB35: =EB34*$B$25 -> 0 | ED35: ДВП с отходами | EF35: =EG35*$B$20 -> 0 | EG35: =EG34*$B$25 -> 0 | EI35: ДВП с отходами | EK35: =EL35*$B$20 -> 0 | EL35: =EL34*$B$25 -> 0 | EN35: ДВП с отходами | EP35: =EQ35*$B$20 -> 0 | EQ35: =EQ34*$B$25 -> 0 | ES35: ДВП с отходами | EU35: =EV35*$B$20 -> 0 | EV35: =EV34*$B$25 -> 0
D36: крой ДВП | F36: =G36*$B$1 -> 0 | G36: =G34*$B$26 -> 0 | I36: крой ДВП | K36: =L36*$B$1 -> 0 | L36: =L34*$B$26 -> 0 | N36: крой ДВП | P36: =Q36*$B$1 -> 0 | Q36: =Q34*$B$26 -> 0 | S36: крой ДВП | U36: =V36*$B$1 -> 0 | V36: =V34*$B$26 -> 0 | X36: крой ДВП | Z36: =AA36*$B$1 -> 0 | AA36: =AA34*$B$26 -> 0 | AC36: крой ДВП | AE36: =AF36*$B$1 -> 0 | AF36: =AF34*$B$26 -> 0 | AH36: крой ДВП | AJ36: =AK36*$B$1 -> 0 | AK36: =AK34*$B$26 -> 0 | AM36: крой ДВП | AO36: =AP36*$B$1 -> 0 | AP36: =AP34*$B$26 -> 0 | AR36: крой ДВП | AT36: =AU36*$B$1 -> 0 | AU36: =AU34*$B$26 -> 0 | AW36: крой ДВП | AY36: =AZ36*$B$1 -> 0 | AZ36: =AZ34*$B$26 -> 0 | BB36: крой ДВП | BD36: =BE36*$B$1 -> 0 | BE36: =BE34*$B$26 -> 0 | BG36: крой ДВП | BI36: =BJ36*$B$1 -> 0 | BJ36: =BJ34*$B$26 -> 0 | BL36: крой ДВП | BN36: =BO36*$B$1 -> 0 | BO36: =BO34*$B$26 -> 0 | BQ36: крой ДВП | BS36: =BT36*$B$1 -> 0 | BT36: =BT34*$B$26 -> 0 | BV36: крой ДВП | BX36: =BY36*$B$1 -> 0 | BY36: =BY34*$B$26 -> 0 | CA36: крой ДВП | CC36: =CD36*$B$1 -> 0 | CD36: =CD34*$B$26 -> 0 | CF36: крой ДВП | CH36: =CI36*$B$1 -> 0 | CI36: =CI34*$B$26 -> 0 | CK36: крой ДВП | CM36: =CN36*$B$1 -> 0 | CN36: =CN34*$B$26 -> 0 | CP36: крой ДВП | CR36: =CS36*$B$1 -> 0 | CS36: =CS34*$B$26 -> 0 | CU36: крой ДВП | CW36: =CX36*$B$1 -> 0 | CX36: =CX34*$B$26 -> 0 | CZ36: крой ДВП | DB36: =DC36*$B$1 -> 0 | DC36: =DC34*$B$26 -> 0 | DE36: крой ДВП | DG36: =DH36*$B$1 -> 0 | DH36: =DH34*$B$26 -> 0 | DJ36: крой ДВП | DL36: =DM36*$B$1 -> 0 | DM36: =DM34*$B$26 -> 0 | DO36: крой ДВП | DQ36: =DR36*$B$1 -> 0 | DR36: =DR34*$B$26 -> 0 | DT36: крой ДВП | DV36: =DW36*$B$1 -> 0 | DW36: =DW34*$B$26 -> 0 | DY36: крой ДВП | EA36: =EB36*$B$1 -> 0 | EB36: =EB34*$B$26 -> 0 | ED36: крой ДВП | EF36: =EG36*$B$1 -> 0 | EG36: =EG34*$B$26 -> 0 | EI36: крой ДВП | EK36: =EL36*$B$1 -> 0 | EL36: =EL34*$B$26 -> 0 | EN36: крой ДВП | EP36: =EQ36*$B$1 -> 0 | EQ36: =EQ34*$B$26 -> 0 | ES36: крой ДВП | EU36: =EV36*$B$1 -> 0 | EV36: =EV34*$B$26 -> 0
D37: ДСП2 в изделии | F37: =G37*$B$12 -> 0 | G37: =SUM(G27:G29) -> 0.000322 | I37: ДСП2 в изделии | K37: =L37*$B$12 -> 0 | L37: =SUM(L27:L29) -> 0 | N37: ДСП2 в изделии | P37: =Q37*$B$12 -> 0 | Q37: =SUM(Q27:Q29) -> 0.0342 | S37: ДСП2 в изделии | U37: =V37*$B$12 -> 0 | V37: =SUM(V27:V29) -> 0 | X37: ДСП2 в изделии | Z37: =AA37*$B$12 -> 0 | AA37: =SUM(AA27:AA29) -> 0 | AC37: ДСП2 в изделии | AE37: =AF37*$B$12 -> 0 | AF37: =SUM(AF27:AF29) -> 0 | AH37: ДСП2 в изделии | AJ37: =AK37*$B$12 -> 0 | AK37: =SUM(AK27:AK29) -> 0 | AM37: ДСП2 в изделии | AO37: =AP37*$B$12 -> 0 | AP37: =SUM(AP27:AP29) -> 0 | AR37: ДСП2 в изделии | AT37: =AU37*$B$12 -> 0 | AU37: =SUM(AU27:AU29) -> 0 | AW37: ДСП2 в изделии | AY37: =AZ37*$B$12 -> 0 | AZ37: =SUM(AZ27:AZ29) -> 0 | BB37: ДСП2 в изделии | BD37: =BE37*$B$12 -> 0 | BE37: =SUM(BE27:BE29) -> 0.63 | BG37: ДСП2 в изделии | BI37: =BJ37*$B$12 -> 0 | BJ37: =SUM(BJ27:BJ29) -> 0 | BL37: ДСП2 в изделии | BN37: =BO37*$B$12 -> 0 | BO37: =SUM(BO27:BO29) -> 0 | BQ37: ДСП2 в изделии | BS37: =BT37*$B$12 -> 0 | BT37: =SUM(BT27:BT29) -> 0 | BV37: ДСП2 в изделии | BX37: =BY37*$B$12 -> 0 | BY37: =SUM(BY27:BY29) -> 0 | CA37: ДСП2 в изделии | CC37: =CD37*$B$12 -> 0 | CD37: =SUM(CD27:CD29) -> 0 | CF37: ДСП2 в изделии | CH37: =CI37*$B$12 -> 0 | CI37: =SUM(CI27:CI29) -> 0 | CK37: ДСП2 в изделии | CM37: =CN37*$B$12 -> 0 | CN37: =SUM(CN27:CN29) -> 0 | CP37: ДСП2 в изделии | CR37: =CS37*$B$12 -> 0 | CS37: =SUM(CS27:CS29) -> 0 | CU37: ДСП2 в изделии | CW37: =CX37*$B$12 -> 0 | CX37: =SUM(CX27:CX29) -> 0 | CZ37: ДСП2 в изделии | DB37: =DC37*$B$12 -> 0 | DC37: =SUM(DC27:DC29) -> 0 | DE37: ДСП2 в изделии | DG37: =DH37*$B$12 -> 0 | DH37: =SUM(DH27:DH29) -> 0 | DJ37: ДСП2 в изделии | DL37: =DM37*$B$12 -> 0 | DM37: =SUM(DM27:DM29) -> 0 | DO37: ДСП2 в изделии | DQ37: =DR37*$B$12 -> 0 | DR37: =SUM(DR27:DR29) -> 0 | DT37: ДСП2 в изделии | DV37: =DW37*$B$12 -> 0 | DW37: =SUM(DW27:DW29) -> 0 | DY37: ДСП2 в изделии | EA37: =EB37*$B$12 -> 0 | EB37: =SUM(EB27:EB29) -> 0 | ED37: ДСП2 в изделии | EF37: =EG37*$B$12 -> 0 | EG37: =SUM(EG27:EG29) -> 0 | EI37: ДСП2 в изделии | EK37: =EL37*$B$12 -> 0 | EL37: =SUM(EL27:EL29) -> 0 | EN37: ДСП2 в изделии | EP37: =EQ37*$B$12 -> 0 | EQ37: =SUM(EQ27:EQ29) -> 0 | ES37: ДСП2 в изделии | EU37: =EV37*$B$12 -> 0 | EV37: =SUM(EV27:EV29) -> 0
D38: ДСП2 с отходами | F38: =G38*$B$12 -> 0 | G38: =G37*$B$17 -> 0 | I38: ДСП2 с отходами | K38: =L38*$B$12 -> 0 | L38: =L37*$B$17 -> 0 | N38: ДСП2 с отходами | P38: =Q38*$B$12 -> 0 | Q38: =Q37*$B$17 -> 0 | S38: ДСП2 с отходами | U38: =V38*$B$12 -> 0 | V38: =V37*$B$17 -> 0 | X38: ДСП2 с отходами | Z38: =AA38*$B$12 -> 0 | AA38: =AA37*$B$17 -> 0 | AC38: ДСП2 с отходами | AE38: =AF38*$B$12 -> 0 | AF38: =AF37*$B$17 -> 0 | AH38: ДСП2 с отходами | AJ38: =AK38*$B$12 -> 0 | AK38: =AK37*$B$17 -> 0 | AM38: ДСП2 с отходами | AO38: =AP38*$B$12 -> 0 | AP38: =AP37*$B$17 -> 0 | AR38: ДСП2 с отходами | AT38: =AU38*$B$12 -> 0 | AU38: =AU37*$B$17 -> 0 | AW38: ДСП2 с отходами | AY38: =AZ38*$B$12 -> 0 | AZ38: =AZ37*$B$17 -> 0 | BB38: ДСП2 с отходами | BD38: =BE38*$B$12 -> 0 | BE38: =BE37*$B$17 -> 0 | BG38: ДСП2 с отходами | BI38: =BJ38*$B$12 -> 0 | BJ38: =BJ37*$B$17 -> 0 | BL38: ДСП2 с отходами | BN38: =BO38*$B$12 -> 0 | BO38: =BO37*$B$17 -> 0 | BQ38: ДСП2 с отходами | BS38: =BT38*$B$12 -> 0 | BT38: =BT37*$B$17 -> 0 | BV38: ДСП2 с отходами | BX38: =BY38*$B$12 -> 0 | BY38: =BY37*$B$17 -> 0 | CA38: ДСП2 с отходами | CC38: =CD38*$B$12 -> 0 | CD38: =CD37*$B$17 -> 0 | CF38: ДСП2 с отходами | CH38: =CI38*$B$12 -> 0 | CI38: =CI37*$B$17 -> 0 | CK38: ДСП2 с отходами | CM38: =CN38*$B$12 -> 0 | CN38: =CN37*$B$17 -> 0 | CP38: ДСП2 с отходами | CR38: =CS38*$B$12 -> 0 | CS38: =CS37*$B$17 -> 0 | CU38: ДСП2 с отходами | CW38: =CX38*$B$12 -> 0 | CX38: =CX37*$B$17 -> 0 | CZ38: ДСП2 с отходами | DB38: =DC38*$B$12 -> 0 | DC38: =DC37*$B$17 -> 0 | DE38: ДСП2 с отходами | DG38: =DH38*$B$12 -> 0 | DH38: =DH37*$B$17 -> 0 | DJ38: ДСП2 с отходами | DL38: =DM38*$B$12 -> 0 | DM38: =DM37*$B$17 -> 0 | DO38: ДСП2 с отходами | DQ38: =DR38*$B$12 -> 0 | DR38: =DR37*$B$17 -> 0 | DT38: ДСП2 с отходами | DV38: =DW38*$B$12 -> 0 | DW38: =DW37*$B$17 -> 0 | DY38: ДСП2 с отходами | EA38: =EB38*$B$12 -> 0 | EB38: =EB37*$B$17 -> 0 | ED38: ДСП2 с отходами | EF38: =EG38*$B$12 -> 0 | EG38: =EG37*$B$17 -> 0 | EI38: ДСП2 с отходами | EK38: =EL38*$B$12 -> 0 | EL38: =EL37*$B$17 -> 0 | EN38: ДСП2 с отходами | EP38: =EQ38*$B$12 -> 0 | EQ38: =EQ37*$B$17 -> 0 | ES38: ДСП2 с отходами | EU38: =EV38*$B$12 -> 0 | EV38: =EV37*$B$17 -> 0
D39: крой ДСП2 | F39: =G39*$B$1 -> 0 | G39: =G37*$B$18 -> 0 | I39: крой ДСП2 | K39: =L39*$B$1 -> 0 | L39: =L37*$B$18 -> 0 | N39: крой ДСП2 | P39: =Q39*$B$1 -> 0 | Q39: =Q37*$B$18 -> 0 | S39: крой ДСП2 | U39: =V39*$B$1 -> 0 | V39: =V37*$B$18 -> 0 | X39: крой ДСП2 | Z39: =AA39*$B$1 -> 0 | AA39: =AA37*$B$18 -> 0 | AC39: крой ДСП2 | AE39: =AF39*$B$1 -> 0 | AF39: =AF37*$B$18 -> 0 | AH39: крой ДСП2 | AJ39: =AK39*$B$1 -> 0 | AK39: =AK37*$B$18 -> 0 | AM39: крой ДСП2 | AO39: =AP39*$B$1 -> 0 | AP39: =AP37*$B$18 -> 0 | AR39: крой ДСП2 | AT39: =AU39*$B$1 -> 0 | AU39: =AU37*$B$18 -> 0 | AW39: крой ДСП2 | AY39: =AZ39*$B$1 -> 0 | AZ39: =AZ37*$B$18 -> 0 | BB39: крой ДСП2 | BD39: =BE39*$B$1 -> 0 | BE39: =BE37*$B$18 -> 0 | BG39: крой ДСП2 | BI39: =BJ39*$B$1 -> 0 | BJ39: =BJ37*$B$18 -> 0 | BL39: крой ДСП2 | BN39: =BO39*$B$1 -> 0 | BO39: =BO37*$B$18 -> 0 | BQ39: крой ДСП2 | BS39: =BT39*$B$1 -> 0 | BT39: =BT37*$B$18 -> 0 | BV39: крой ДСП2 | BX39: =BY39*$B$1 -> 0 | BY39: =BY37*$B$18 -> 0 | CA39: крой ДСП2 | CC39: =CD39*$B$1 -> 0 | CD39: =CD37*$B$18 -> 0 | CF39: крой ДСП2 | CH39: =CI39*$B$1 -> 0 | CI39: =CI37*$B$18 -> 0 | CK39: крой ДСП2 | CM39: =CN39*$B$1 -> 0 | CN39: =CN37*$B$18 -> 0 | CP39: крой ДСП2 | CR39: =CS39*$B$1 -> 0 | CS39: =CS37*$B$18 -> 0 | CU39: крой ДСП2 | CW39: =CX39*$B$1 -> 0 | CX39: =CX37*$B$18 -> 0 | CZ39: крой ДСП2 | DB39: =DC39*$B$1 -> 0 | DC39: =DC37*$B$18 -> 0 | DE39: крой ДСП2 | DG39: =DH39*$B$1 -> 0 | DH39: =DH37*$B$18 -> 0 | DJ39: крой ДСП2 | DL39: =DM39*$B$1 -> 0 | DM39: =DM37*$B$18 -> 0 | DO39: крой ДСП2 | DQ39: =DR39*$B$1 -> 0 | DR39: =DR37*$B$18 -> 0 | DT39: крой ДСП2 | DV39: =DW39*$B$1 -> 0 | DW39: =DW37*$B$18 -> 0 | DY39: крой ДСП2 | EA39: =EB39*$B$1 -> 0 | EB39: =EB37*$B$18 -> 0 | ED39: крой ДСП2 | EF39: =EG39*$B$1 -> 0 | EG39: =EG37*$B$18 -> 0 | EI39: крой ДСП2 | EK39: =EL39*$B$1 -> 0 | EL39: =EL37*$B$18 -> 0 | EN39: крой ДСП2 | EP39: =EQ39*$B$1 -> 0 | EQ39: =EQ37*$B$18 -> 0 | ES39: крой ДСП2 | EU39: =EV39*$B$1 -> 0 | EV39: =EV37*$B$18 -> 0
D40: ДСП | G40: =G4 -> 0 | I40: ДСП | L40: =L4 -> 0 | N40: ДСП | Q40: =Q4 -> 0 | S40: ДСП | V40: =V4 -> 0 | X40: ДСП | AA40: =AA4 -> 0 | AC40: ДСП | AF40: =AF4 -> 0 | AH40: ДСП | AK40: =AK4 -> 0 | AM40: ДСП | AP40: =AP4 -> 0 | AR40: ДСП | AU40: =AU4 -> 0 | AW40: ДСП | AZ40: =AZ4 -> 0 | BB40: ДСП | BE40: =BE4 -> 0 | BG40: ДСП | BJ40: =BJ4 -> 0 | BL40: ДСП | BO40: =BO4 -> 0 | BQ40: ДСП | BT40: =BT4 -> 0 | BV40: ДСП | BY40: =BY4 -> 0 | CA40: ДСП | CD40: =CD4 -> 0 | CF40: ДСП | CI40: =CI4 -> 0 | CK40: ДСП | CN40: =CN4 -> 0 | CP40: ДСП | CS40: =CS4 -> 0 | CU40: ДСП | CX40: =CX4 -> 0 | CZ40: ДСП | DC40: =DC4 -> 0 | DE40: ДСП | DH40: =DH4 -> 0 | DJ40: ДСП | DM40: =DM4 -> 0 | DO40: ДСП | DR40: =DR4 -> 0 | DT40: ДСП | DW40: =DW4 -> 0 | DY40: ДСП | EB40: =EB4 -> 0 | ED40: ДСП | EG40: =EG4 -> 0 | EI40: ДСП | EL40: =EL4 -> 0 | EN40: ДСП | EQ40: =EQ4 -> 0 | ES40: ДСП | EV40: =EV4 -> 0
D41: Фурнитура | G41: =G82 -> 0 | I41: Фурнитура | L41: =L82 -> 0 | N41: Фурнитура | Q41: =Q82 -> 0 | S41: Фурнитура | V41: =V82 -> 0 | X41: Фурнитура | AA41: =AA82 -> 0 | AC41: Фурнитура | AF41: =AF82 -> 0 | AH41: Фурнитура | AK41: =AK82 -> 0 | AM41: Фурнитура | AP41: =AP82 -> 0 | AR41: Фурнитура | AU41: =AU82 -> 0 | AW41: Фурнитура | AZ41: =AZ82 -> 0 | BB41: Фурнитура | BE41: =BE82 -> 0 | BG41: Фурнитура | BJ41: =BJ82 -> 0 | BL41: Фурнитура | BO41: =BO82 -> 0 | BQ41: Фурнитура | BT41: =BT82 -> 0 | BV41: Фурнитура | BY41: =BY82 -> 0 | CA41: Фурнитура | CD41: =CD82 -> 0 | CF41: Фурнитура | CI41: =CI82 -> 0 | CK41: Фурнитура | CN41: =CN82 -> 0 | CP41: Фурнитура | CS41: =CS82 -> 0 | CU41: Фурнитура | CX41: =CX82 -> 0 | CZ41: Фурнитура | DC41: =DC82 -> 0 | DE41: Фурнитура | DH41: =DH82 -> 0 | DJ41: Фурнитура | DM41: =DM82 -> 0 | DO41: Фурнитура | DR41: =DR82 -> 0 | DT41: Фурнитура | DW41: =DW82 -> 0 | DY41: Фурнитура | EB41: =EB82 -> 0 | ED41: Фурнитура | EG41: =EG82 -> 0 | EI41: Фурнитура | EL41: =EL82 -> 0 | EN41: Фурнитура | EQ41: =EQ82 -> 0 | ES41: Фурнитура | EV41: =EV82 -> 0
D42: Присадка | I42: Присадка | N42: Присадка | S42: Присадка | X42: Присадка | AC42: Присадка | AH42: Присадка | AM42: Присадка | AR42: Присадка | AW42: Присадка | BB42: Присадка | BG42: Присадка | BL42: Присадка | BQ42: Присадка | BV42: Присадка | CA42: Присадка | CF42: Присадка | CK42: Присадка | CP42: Присадка | CU42: Присадка | CZ42: Присадка | DE42: Присадка | DJ42: Присадка | DO42: Присадка | DT42: Присадка | DY42: Присадка | ED42: Присадка | EI42: Присадка | EN42: Присадка | ES42: Присадка
D43: Сборка | I43: Сборка | N43: Сборка | S43: Сборка | X43: Сборка | AC43: Сборка | AH43: Сборка | AM43: Сборка | AR43: Сборка | AW43: Сборка | BB43: Сборка | BG43: Сборка | BL43: Сборка | BQ43: Сборка | BV43: Сборка | CA43: Сборка | CF43: Сборка | CK43: Сборка | CP43: Сборка | CU43: Сборка | CZ43: Сборка | DE43: Сборка | DJ43: Сборка | DO43: Сборка | DT43: Сборка | DY43: Сборка | ED43: Сборка | EI43: Сборка | EN43: Сборка | ES43: Сборка
D44: Дополнительно | I44: Дополнительно | N44: Дополнительно | S44: Дополнительно | X44: Дополнительно | AC44: Дополнительно | AH44: Дополнительно | AM44: Дополнительно | AR44: Дополнительно | AW44: Дополнительно | BB44: Дополнительно | BG44: Дополнительно | BL44: Дополнительно | BQ44: Дополнительно | BV44: Дополнительно | CA44: Дополнительно | CF44: Дополнительно | CK44: Дополнительно | CP44: Дополнительно | CU44: Дополнительно | CZ44: Дополнительно | DE44: Дополнительно | DJ44: Дополнительно | DO44: Дополнительно | DT44: Дополнительно | DY44: Дополнительно | ED44: Дополнительно | EI44: Дополнительно | EN44: Дополнительно | ES44: Дополнительно
D45: ИТОГО | G45: =SUM(G40:G44) -> 0 | I45: ИТОГО | L45: =SUM(L40:L44) -> 0 | N45: ИТОГО | Q45: =SUM(Q40:Q44) -> 0 | S45: ИТОГО | V45: =SUM(V40:V44) -> 0 | X45: ИТОГО | AA45: =SUM(AA40:AA44) -> 0 | AC45: ИТОГО | AF45: =SUM(AF40:AF44) -> 0 | AH45: ИТОГО | AK45: =SUM(AK40:AK44) -> 0 | AM45: ИТОГО | AP45: =SUM(AP40:AP44) -> 0 | AR45: ИТОГО | AU45: =SUM(AU40:AU44) -> 0 | AW45: ИТОГО | AZ45: =SUM(AZ40:AZ44) -> 0 | BB45: ИТОГО | BE45: =SUM(BE40:BE44) -> 0 | BG45: ИТОГО | BJ45: =SUM(BJ40:BJ44) -> 0 | BL45: ИТОГО | BO45: =SUM(BO40:BO44) -> 0 | BQ45: ИТОГО | BT45: =SUM(BT40:BT44) -> 0 | BV45: ИТОГО | BY45: =SUM(BY40:BY44) -> 0 | CA45: ИТОГО | CD45: =SUM(CD40:CD44) -> 0 | CF45: ИТОГО | CI45: =SUM(CI40:CI44) -> 0 | CK45: ИТОГО | CN45: =SUM(CN40:CN44) -> 0 | CP45: ИТОГО | CS45: =SUM(CS40:CS44) -> 0 | CU45: ИТОГО | CX45: =SUM(CX40:CX44) -> 0 | CZ45: ИТОГО | DC45: =SUM(DC40:DC44) -> 0 | DE45: ИТОГО | DH45: =SUM(DH40:DH44) -> 0 | DJ45: ИТОГО | DM45: =SUM(DM40:DM44) -> 0 | DO45: ИТОГО | DR45: =SUM(DR40:DR44) -> 0 | DT45: ИТОГО | DW45: =SUM(DW40:DW44) -> 0 | DY45: ИТОГО | EB45: =SUM(EB40:EB44) -> 0 | ED45: ИТОГО | EG45: =SUM(EG40:EG44) -> 0 | EI45: ИТОГО | EL45: =SUM(EL40:EL44) -> 0 | EN45: ИТОГО | EQ45: =SUM(EQ40:EQ44) -> 0 | ES45: ИТОГО | EV45: =SUM(EV40:EV44) -> 0
A46: ЦЕНА | B46: Кол-во | D46: кол-во изделий | F46: =D5 -> 2 | G46: =D4 -> 1 | I46: кол-во изделий | K46: =I5 -> 1 | L46: =I4 -> 2 | N46: кол-во изделий | P46: =N5 -> 5 | Q46: =N4 -> 3 | S46: кол-во изделий | U46: =S5 -> 0 | V46: =S4 -> 4 | X46: кол-во изделий | Z46: =X5 -> 0 | AA46: =X4 -> 5 | AC46: кол-во изделий | AE46: =AC5 -> 0 | AF46: =AC4 -> 6 | AH46: кол-во изделий | AJ46: =AH5 -> 0 | AK46: =AH4 -> 7 | AM46: кол-во изделий | AO46: =AM5 -> 0 | AP46: =AM4 -> 8 | AR46: кол-во изделий | AT46: =AR5 -> 0 | AU46: =AR4 -> 9 | AW46: кол-во изделий | AY46: =AW5 -> 0 | AZ46: =AW4 -> 10 | BB46: кол-во изделий | BD46: =BB5 -> 0 | BE46: =BB4 -> 11 | BG46: кол-во изделий | BI46: =BG5 -> 0 | BJ46: =BG4 -> 12 | BL46: кол-во изделий | BN46: =BL5 -> 0 | BO46: =BL4 -> 13 | BQ46: кол-во изделий | BS46: =BQ5 -> 0 | BT46: =BQ4 -> 14 | BV46: кол-во изделий | BX46: =BV5 -> 0 | BY46: =BV4 -> 15 | CA46: кол-во изделий | CC46: =CA5 -> 0 | CD46: =CA4 -> 16 | CF46: кол-во изделий | CH46: =CF5 -> 0 | CI46: =CF4 -> 17 | CK46: кол-во изделий | CM46: =CK5 -> 0 | CN46: =CK4 -> 18 | CP46: кол-во изделий | CR46: =CP5 -> 0 | CS46: =CP4 -> 19 | CU46: кол-во изделий | CW46: =CU5 -> 0 | CX46: =CU4 -> 20 | CZ46: кол-во изделий | DB46: =CZ5 -> 0 | DC46: =CZ4 -> 21 | DE46: кол-во изделий | DG46: =DE5 -> 0 | DH46: =DE4 -> 22 | DJ46: кол-во изделий | DL46: =DJ5 -> 0 | DM46: =DJ4 -> 23 | DO46: кол-во изделий | DQ46: =DO5 -> 0 | DR46: =DO4 -> 24 | DT46: кол-во изделий | DV46: =DT5 -> 0 | DW46: =DT4 -> 25 | DY46: кол-во изделий | EA46: =DY5 -> 0 | EB46: =DY4 -> 26 | ED46: кол-во изделий | EF46: =ED5 -> 0 | EG46: =ED4 -> 27 | EI46: кол-во изделий | EK46: =EI5 -> 0 | EL46: =EI4 -> 28 | EN46: кол-во изделий | EP46: =EN5 -> 0 | EQ46: =EN4 -> 29 | ES46: кол-во изделий | EU46: =ES5 -> 0 | EV46: =ES4 -> 30
A47: 0.7 | B47: =F47+K47+P47+U47+Z47+AE47+AJ47+AO47+AT47+AY47+BD47+BI47+BN47+BS47+BX47+CC47+CH47+CM47+CR47+CW47+DB47+DG47+DL47+DQ47+DV47+EA47+EF47+EK47+EP47+EU47 -> 0 | C47: сращ | E47: =$A47*G47 -> 0 | F47: =G47*$D$5 -> 0 | J47: =$A47*L47 -> 0 | K47: =L47*$I$5 -> 0 | O47: =$A47*Q47 -> 0 | P47: =Q47*$N$5 -> 0 | T47: =$A47*V47 -> 0 | U47: =V47*$S$5 -> 0 | Y47: =$A47*AA47 -> 0 | Z47: =AA47*$X$5 -> 0 | AD47: =$A47*AF47 -> 0 | AE47: =AF47*$AC$5 -> 0 | AI47: =$A47*AK47 -> 0 | AJ47: =AK47*$AH$5 -> 0 | AN47: =$A47*AP47 -> 0 | AO47: =AP47*$AM$5 -> 0 | AS47: =$A47*AU47 -> 0 | AT47: =AU47*$AR$5 -> 0 | AX47: =$A47*AZ47 -> 0 | AY47: =AZ47*$AW$5 -> 0 | BC47: =$A47*BE47 -> 0 | BD47: =BE47*$BB$5 -> 0 | BH47: =$A47*BJ47 -> 0 | BI47: =BJ47*$BG$5 -> 0 | BM47: =$A47*BO47 -> 0 | BN47: =BO47*$BL$5 -> 0 | BR47: =$A47*BT47 -> 0 | BS47: =BT47*$BQ$5 -> 0 | BW47: =$A47*BY47 -> 0 | BX47: =BY47*$BV$5 -> 0 | CB47: =$A47*CD47 -> 0 | CC47: =CD47*$CA$5 -> 0 | CG47: =$A47*CI47 -> 0 | CH47: =CI47*$CF$5 -> 0 | CL47: =$A47*CN47 -> 0 | CM47: =CN47*$CK$5 -> 0 | CQ47: =$A47*CS47 -> 0 | CR47: =CS47*$CP$5 -> 0 | CV47: =$A47*CX47 -> 0 | CW47: =CX47*$CU$5 -> 0 | DA47: =$A47*DC47 -> 0 | DB47: =DC47*$CZ$5 -> 0 | DF47: =$A47*DH47 -> 0 | DG47: =DH47*$DE$5 -> 0 | DK47: =$A47*DM47 -> 0 | DL47: =DM47*$DJ$5 -> 0 | DP47: =$A47*DR47 -> 0 | DQ47: =DR47*$DO$5 -> 0 | DU47: =$A47*DW47 -> 0 | DV47: =DW47*$DT$5 -> 0 | DZ47: =$A47*EB47 -> 0 | EA47: =EB47*$DY$5 -> 0 | EE47: =$A47*EG47 -> 0 | EF47: =EG47*$ED$5 -> 0 | EJ47: =$A47*EL47 -> 0 | EK47: =EL47*$EI$5 -> 0 | EO47: =$A47*EQ47 -> 0 | EP47: =EQ47*$EN$5 -> 0 | ET47: =$A47*EV47 -> 0 | EU47: =EV47*$ES$5 -> 0
A48: 0.18 | B48: =F48+K48+P48+U48+Z48+AE48+AJ48+AO48+AT48+AY48+BD48+BI48+BN48+BS48+BX48+CC48+CH48+CM48+CR48+CW48+DB48+DG48+DL48+DQ48+DV48+EA48+EF48+EK48+EP48+EU48 -> 0 | C48: торц | E48: =$A48*G48 -> 0 | F48: 0 | J48: =$A48*L48 -> 0 | K48: =L48*$I$5 -> 0 | O48: =$A48*Q48 -> 0 | P48: =Q48*$N$5 -> 0 | T48: =$A48*V48 -> 0 | U48: =V48*$S$5 -> 0 | Y48: =$A48*AA48 -> 0 | Z48: =AA48*$X$5 -> 0 | AD48: =$A48*AF48 -> 0 | AE48: =AF48*$AC$5 -> 0 | AI48: =$A48*AK48 -> 0 | AJ48: =AK48*$AH$5 -> 0 | AN48: =$A48*AP48 -> 0 | AO48: =AP48*$AM$5 -> 0 | AS48: =$A48*AU48 -> 0 | AT48: =AU48*$AR$5 -> 0 | AX48: =$A48*AZ48 -> 0 | AY48: =AZ48*$AW$5 -> 0 | BC48: =$A48*BE48 -> 0 | BD48: =BE48*$BB$5 -> 0 | BH48: =$A48*BJ48 -> 0 | BI48: =BJ48*$BG$5 -> 0 | BM48: =$A48*BO48 -> 0 | BN48: =BO48*$BL$5 -> 0 | BR48: =$A48*BT48 -> 0 | BS48: =BT48*$BQ$5 -> 0 | BW48: =$A48*BY48 -> 0 | BX48: =BY48*$BV$5 -> 0 | CB48: =$A48*CD48 -> 0 | CC48: =CD48*$CA$5 -> 0 | CG48: =$A48*CI48 -> 0 | CH48: =CI48*$CF$5 -> 0 | CL48: =$A48*CN48 -> 0 | CM48: =CN48*$CK$5 -> 0 | CQ48: =$A48*CS48 -> 0 | CR48: =CS48*$CP$5 -> 0 | CV48: =$A48*CX48 -> 0 | CW48: =CX48*$CU$5 -> 0 | DA48: =$A48*DC48 -> 0 | DB48: =DC48*$CZ$5 -> 0 | DF48: =$A48*DH48 -> 0 | DG48: =DH48*$DE$5 -> 0 | DK48: =$A48*DM48 -> 0 | DL48: =DM48*$DJ$5 -> 0 | DP48: =$A48*DR48 -> 0 | DQ48: =DR48*$DO$5 -> 0 | DU48: =$A48*DW48 -> 0 | DV48: =DW48*$DT$5 -> 0 | DZ48: =$A48*EB48 -> 0 | EA48: =EB48*$DY$5 -> 0 | EE48: =$A48*EG48 -> 0 | EF48: =EG48*$ED$5 -> 0 | EJ48: =$A48*EL48 -> 0 | EK48: =EL48*$EI$5 -> 0 | EO48: =$A48*EQ48 -> 0 | EP48: =EQ48*$EN$5 -> 0 | ET48: =$A48*EV48 -> 0 | EU48: =EV48*$ES$5 -> 0
A49: 1.3 | B49: 0 | C49: фрез 18 | E49: 0 | F49: 0 | J49: 0 | K49: 0 | O49: 0 | P49: 0 | T49: 0 | U49: 0 | Y49: 0 | Z49: 0 | AD49: 0 | AE49: 0 | AI49: 0 | AJ49: 0 | AN49: 0 | AO49: 0 | AS49: 0 | AT49: 0 | AX49: 0 | AY49: 0 | BC49: 0 | BD49: 0 | BH49: 0 | BI49: 0 | BM49: 0 | BN49: 0 | BR49: 0 | BS49: 0 | BW49: 0 | BX49: 0 | CB49: 0 | CC49: 0 | CG49: 0 | CH49: 0 | CL49: 0 | CM49: 0 | CQ49: 0 | CR49: 0 | CV49: 0 | CW49: 0 | DA49: 0 | DB49: 0 | DF49: 0 | DG49: 0 | DK49: 0 | DL49: 0 | DP49: 0 | DQ49: 0 | DU49: 0 | DV49: 0 | DZ49: 0 | EA49: 0 | EE49: 0 | EF49: 0 | EJ49: 0 | EK49: 0 | EO49: 0 | EP49: 0 | ET49: 0 | EU49: 0
A50: 1.7 | B50: 0 | C50: фрез 36 | E50: 0 | F50: 0 | J50: 0 | K50: 0 | O50: 0 | P50: 0 | T50: 0 | U50: 0 | Y50: 0 | Z50: 0 | AD50: 0 | AE50: 0 | AI50: 0 | AJ50: 0 | AN50: 0 | AO50: 0 | AS50: 0 | AT50: 0 | AX50: 0 | AY50: 0 | BC50: 0 | BD50: 0 | BH50: 0 | BI50: 0 | BM50: 0 | BN50: 0 | BR50: 0 | BS50: 0 | BW50: 0 | BX50: 0 | CB50: 0 | CC50: 0 | CG50: 0 | CH50: 0 | CL50: 0 | CM50: 0 | CQ50: 0 | CR50: 0 | CV50: 0 | CW50: 0 | DA50: 0 | DB50: 0 | DF50: 0 | DG50: 0 | DK50: 0 | DL50: 0 | DP50: 0 | DQ50: 0 | DU50: 0 | DV50: 0 | DZ50: 0 | EA50: 0 | EE50: 0 | EF50: 0 | EJ50: 0 | EK50: 0 | EO50: 0 | EP50: 0 | ET50: 0 | EU50: 0
A51: 1 | B51: 0 | C51: ~ 2/45 | E51: 0 | F51: 0 | J51: 0 | K51: 0 | O51: 0 | P51: 0 | T51: 0 | U51: 0 | Y51: 0 | Z51: 0 | AD51: 0 | AE51: 0 | AI51: 0 | AJ51: 0 | AN51: 0 | AO51: 0 | AS51: 0 | AT51: 0 | AX51: 0 | AY51: 0 | BC51: 0 | BD51: 0 | BH51: 0 | BI51: 0 | BM51: 0 | BN51: 0 | BR51: 0 | BS51: 0 | BW51: 0 | BX51: 0 | CB51: 0 | CC51: 0 | CG51: 0 | CH51: 0 | CL51: 0 | CM51: 0 | CQ51: 0 | CR51: 0 | CV51: 0 | CW51: 0 | DA51: 0 | DB51: 0 | DF51: 0 | DG51: 0 | DK51: 0 | DL51: 0 | DP51: 0 | DQ51: 0 | DU51: 0 | DV51: 0 | DZ51: 0 | EA51: 0 | EE51: 0 | EF51: 0 | EJ51: 0 | EK51: 0 | EO51: 0 | EP51: 0 | ET51: 0 | EU51: 0
A52: 0.57 | B52: 0 | C52: ~ 2/22 | E52: 0 | F52: 0 | J52: 0 | K52: 0 | O52: 0 | P52: 0 | T52: 0 | U52: 0 | Y52: 0 | Z52: 0 | AD52: 0 | AE52: 0 | AI52: 0 | AJ52: 0 | AN52: 0 | AO52: 0 | AS52: 0 | AT52: 0 | AX52: 0 | AY52: 0 | BC52: 0 | BD52: 0 | BH52: 0 | BI52: 0 | BM52: 0 | BN52: 0 | BR52: 0 | BS52: 0 | BW52: 0 | BX52: 0 | CB52: 0 | CC52: 0 | CG52: 0 | CH52: 0 | CL52: 0 | CM52: 0 | CQ52: 0 | CR52: 0 | CV52: 0 | CW52: 0 | DA52: 0 | DB52: 0 | DF52: 0 | DG52: 0 | DK52: 0 | DL52: 0 | DP52: 0 | DQ52: 0 | DU52: 0 | DV52: 0 | DZ52: 0 | EA52: 0 | EE52: 0 | EF52: 0 | EJ52: 0 | EK52: 0 | EO52: 0 | EP52: 0 | ET52: 0 | EU52: 0
A53: 0.44 | B53: 0 | C53: ~ 1/22 | E53: 0 | F53: 0 | J53: 0 | K53: 0 | O53: 0 | P53: 0 | T53: 0 | U53: 0 | Y53: 0 | Z53: 0 | AD53: 0 | AE53: 0 | AI53: 0 | AJ53: 0 | AN53: 0 | AO53: 0 | AS53: 0 | AT53: 0 | AX53: 0 | AY53: 0 | BC53: 0 | BD53: 0 | BH53: 0 | BI53: 0 | BM53: 0 | BN53: 0 | BR53: 0 | BS53: 0 | BW53: 0 | BX53: 0 | CB53: 0 | CC53: 0 | CG53: 0 | CH53: 0 | CL53: 0 | CM53: 0 | CQ53: 0 | CR53: 0 | CV53: 0 | CW53: 0 | DA53: 0 | DB53: 0 | DF53: 0 | DG53: 0 | DK53: 0 | DL53: 0 | DP53: 0 | DQ53: 0 | DU53: 0 | DV53: 0 | DZ53: 0 | EA53: 0 | EE53: 0 | EF53: 0 | EJ53: 0 | EK53: 0 | EO53: 0 | EP53: 0 | ET53: 0 | EU53: 0
A54: 0.7 | B54: 0 | C54: – 2/45 | E54: 0 | F54: 0 | J54: 0 | K54: 0 | O54: 0 | P54: 0 | T54: 0 | U54: 0 | Y54: 0 | Z54: 0 | AD54: 0 | AE54: 0 | AI54: 0 | AJ54: 0 | AN54: 0 | AO54: 0 | AS54: 0 | AT54: 0 | AX54: 0 | AY54: 0 | BC54: 0 | BD54: 0 | BH54: 0 | BI54: 0 | BM54: 0 | BN54: 0 | BR54: 0 | BS54: 0 | BW54: 0 | BX54: 0 | CB54: 0 | CC54: 0 | CG54: 0 | CH54: 0 | CL54: 0 | CM54: 0 | CQ54: 0 | CR54: 0 | CV54: 0 | CW54: 0 | DA54: 0 | DB54: 0 | DF54: 0 | DG54: 0 | DK54: 0 | DL54: 0 | DP54: 0 | DQ54: 0 | DU54: 0 | DV54: 0 | DZ54: 0 | EA54: 0 | EE54: 0 | EF54: 0 | EJ54: 0 | EK54: 0 | EO54: 0 | EP54: 0 | ET54: 0 | EU54: 0
A55: 0.47 | B55: 0 | C55: – 2/22 | E55: 0 | F55: 0 | J55: 0 | K55: 0 | O55: 0 | P55: 0 | T55: 0 | U55: 0 | Y55: 0 | Z55: 0 | AD55: 0 | AE55: 0 | AI55: 0 | AJ55: 0 | AN55: 0 | AO55: 0 | AS55: 0 | AT55: 0 | AX55: 0 | AY55: 0 | BC55: 0 | BD55: 0 | BH55: 0 | BI55: 0 | BM55: 0 | BN55: 0 | BR55: 0 | BS55: 0 | BW55: 0 | BX55: 0 | CB55: 0 | CC55: 0 | CG55: 0 | CH55: 0 | CL55: 0 | CM55: 0 | CQ55: 0 | CR55: 0 | CV55: 0 | CW55: 0 | DA55: 0 | DB55: 0 | DF55: 0 | DG55: 0 | DK55: 0 | DL55: 0 | DP55: 0 | DQ55: 0 | DU55: 0 | DV55: 0 | DZ55: 0 | EA55: 0 | EE55: 0 | EF55: 0 | EJ55: 0 | EK55: 0 | EO55: 0 | EP55: 0 | ET55: 0 | EU55: 0
A56: 0.34 | B56: 0 | C56: – 1/22 | E56: 0 | F56: 0 | J56: 0 | K56: 0 | O56: 0 | P56: 0 | T56: 0 | U56: 0 | Y56: 0 | Z56: 0 | AD56: 0 | AE56: 0 | AI56: 0 | AJ56: 0 | AN56: 0 | AO56: 0 | AS56: 0 | AT56: 0 | AX56: 0 | AY56: 0 | BC56: 0 | BD56: 0 | BH56: 0 | BI56: 0 | BM56: 0 | BN56: 0 | BR56: 0 | BS56: 0 | BW56: 0 | BX56: 0 | CB56: 0 | CC56: 0 | CG56: 0 | CH56: 0 | CL56: 0 | CM56: 0 | CQ56: 0 | CR56: 0 | CV56: 0 | CW56: 0 | DA56: 0 | DB56: 0 | DF56: 0 | DG56: 0 | DK56: 0 | DL56: 0 | DP56: 0 | DQ56: 0 | DU56: 0 | DV56: 0 | DZ56: 0 | EA56: 0 | EE56: 0 | EF56: 0 | EJ56: 0 | EK56: 0 | EO56: 0 | EP56: 0 | ET56: 0 | EU56: 0
A57: 0.15 | B57: 0 | C57: меламин | E57: 0 | F57: 0 | J57: 0 | K57: 0 | O57: 0 | P57: 0 | T57: 0 | U57: 0 | Y57: 0 | Z57: 0 | AD57: 0 | AE57: 0 | AI57: 0 | AJ57: 0 | AN57: 0 | AO57: 0 | AS57: 0 | AT57: 0 | AX57: 0 | AY57: 0 | BC57: 0 | BD57: 0 | BH57: 0 | BI57: 0 | BM57: 0 | BN57: 0 | BR57: 0 | BS57: 0 | BW57: 0 | BX57: 0 | CB57: 0 | CC57: 0 | CG57: 0 | CH57: 0 | CL57: 0 | CM57: 0 | CQ57: 0 | CR57: 0 | CV57: 0 | CW57: 0 | DA57: 0 | DB57: 0 | DF57: 0 | DG57: 0 | DK57: 0 | DL57: 0 | DP57: 0 | DQ57: 0 | DU57: 0 | DV57: 0 | DZ57: 0 | EA57: 0 | EE57: 0 | EF57: 0 | EJ57: 0 | EK57: 0 | EO57: 0 | EP57: 0 | ET57: 0 | EU57: 0
A58: 0.1 | B58: 0 | C58: Подпятник БЕТА | E58: 0 | F58: 0 | J58: 0 | K58: 0 | O58: 0 | P58: 0 | T58: 0 | U58: 0 | Y58: 0 | Z58: 0 | AD58: 0 | AE58: 0 | AI58: 0 | AJ58: 0 | AN58: 0 | AO58: 0 | AS58: 0 | AT58: 0 | AX58: 0 | AY58: 0 | BC58: 0 | BD58: 0 | BH58: 0 | BI58: 0 | BM58: 0 | BN58: 0 | BR58: 0 | BS58: 0 | BW58: 0 | BX58: 0 | CB58: 0 | CC58: 0 | CG58: 0 | CH58: 0 | CL58: 0 | CM58: 0 | CQ58: 0 | CR58: 0 | CV58: 0 | CW58: 0 | DA58: 0 | DB58: 0 | DF58: 0 | DG58: 0 | DK58: 0 | DL58: 0 | DP58: 0 | DQ58: 0 | DU58: 0 | DV58: 0 | DZ58: 0 | EA58: 0 | EE58: 0 | EF58: 0 | EJ58: 0 | EK58: 0 | EO58: 0 | EP58: 0 | ET58: 0 | EU58: 0
A59: 0.012 | B59: 0 | C59: Стяжка 7*50 | E59: 0 | F59: 0 | J59: 0 | K59: 0 | O59: 0 | P59: 0 | T59: 0 | U59: 0 | Y59: 0 | Z59: 0 | AD59: 0 | AE59: 0 | AI59: 0 | AJ59: 0 | AN59: 0 | AO59: 0 | AS59: 0 | AT59: 0 | AX59: 0 | AY59: 0 | BC59: 0 | BD59: 0 | BH59: 0 | BI59: 0 | BM59: 0 | BN59: 0 | BR59: 0 | BS59: 0 | BW59: 0 | BX59: 0 | CB59: 0 | CC59: 0 | CG59: 0 | CH59: 0 | CL59: 0 | CM59: 0 | CQ59: 0 | CR59: 0 | CV59: 0 | CW59: 0 | DA59: 0 | DB59: 0 | DF59: 0 | DG59: 0 | DK59: 0 | DL59: 0 | DP59: 0 | DQ59: 0 | DU59: 0 | DV59: 0 | DZ59: 0 | EA59: 0 | EE59: 0 | EF59: 0 | EJ59: 0 | EK59: 0 | EO59: 0 | EP59: 0 | ET59: 0 | EU59: 0
A60: 0.22 | B60: 0 | C60: Ручка 96мм | E60: 0 | F60: 0 | J60: 0 | K60: 0 | O60: 0 | P60: 0 | T60: 0 | U60: 0 | Y60: 0 | Z60: 0 | AD60: 0 | AE60: 0 | AI60: 0 | AJ60: 0 | AN60: 0 | AO60: 0 | AS60: 0 | AT60: 0 | AX60: 0 | AY60: 0 | BC60: 0 | BD60: 0 | BH60: 0 | BI60: 0 | BM60: 0 | BN60: 0 | BR60: 0 | BS60: 0 | BW60: 0 | BX60: 0 | CB60: 0 | CC60: 0 | CG60: 0 | CH60: 0 | CL60: 0 | CM60: 0 | CQ60: 0 | CR60: 0 | CV60: 0 | CW60: 0 | DA60: 0 | DB60: 0 | DF60: 0 | DG60: 0 | DK60: 0 | DL60: 0 | DP60: 0 | DQ60: 0 | DU60: 0 | DV60: 0 | DZ60: 0 | EA60: 0 | EE60: 0 | EF60: 0 | EJ60: 0 | EK60: 0 | EO60: 0 | EP60: 0 | ET60: 0 | EU60: 0
A61: 0.015 | B61: 0 | C61: Уголок | E61: 0 | F61: 0 | J61: 0 | K61: 0 | O61: 0 | P61: 0 | T61: 0 | U61: 0 | Y61: 0 | Z61: 0 | AD61: 0 | AE61: 0 | AI61: 0 | AJ61: 0 | AN61: 0 | AO61: 0 | AS61: 0 | AT61: 0 | AX61: 0 | AY61: 0 | BC61: 0 | BD61: 0 | BH61: 0 | BI61: 0 | BM61: 0 | BN61: 0 | BR61: 0 | BS61: 0 | BW61: 0 | BX61: 0 | CB61: 0 | CC61: 0 | CG61: 0 | CH61: 0 | CL61: 0 | CM61: 0 | CQ61: 0 | CR61: 0 | CV61: 0 | CW61: 0 | DA61: 0 | DB61: 0 | DF61: 0 | DG61: 0 | DK61: 0 | DL61: 0 | DP61: 0 | DQ61: 0 | DU61: 0 | DV61: 0 | DZ61: 0 | EA61: 0 | EE61: 0 | EF61: 0 | EJ61: 0 | EK61: 0 | EO61: 0 | EP61: 0 | ET61: 0 | EU61: 0
A62: 0.16 | B62: 0 | C62: Петля накладная | E62: 0 | F62: 0 | J62: 0 | K62: 0 | O62: 0 | P62: 0 | T62: 0 | U62: 0 | Y62: 0 | Z62: 0 | AD62: 0 | AE62: 0 | AI62: 0 | AJ62: 0 | AN62: 0 | AO62: 0 | AS62: 0 | AT62: 0 | AX62: 0 | AY62: 0 | BC62: 0 | BD62: 0 | BH62: 0 | BI62: 0 | BM62: 0 | BN62: 0 | BR62: 0 | BS62: 0 | BW62: 0 | BX62: 0 | CB62: 0 | CC62: 0 | CG62: 0 | CH62: 0 | CL62: 0 | CM62: 0 | CQ62: 0 | CR62: 0 | CV62: 0 | CW62: 0 | DA62: 0 | DB62: 0 | DF62: 0 | DG62: 0 | DK62: 0 | DL62: 0 | DP62: 0 | DQ62: 0 | DU62: 0 | DV62: 0 | DZ62: 0 | EA62: 0 | EE62: 0 | EF62: 0 | EJ62: 0 | EK62: 0 | EO62: 0 | EP62: 0 | ET62: 0 | EU62: 0
A63: 0.003 | B63: 0 | C63: 4х16 | E63: 0 | F63: 0 | J63: 0 | K63: 0 | O63: 0 | P63: 0 | T63: 0 | U63: 0 | Y63: 0 | Z63: 0 | AD63: 0 | AE63: 0 | AI63: 0 | AJ63: 0 | AN63: 0 | AO63: 0 | AS63: 0 | AT63: 0 | AX63: 0 | AY63: 0 | BC63: 0 | BD63: 0 | BH63: 0 | BI63: 0 | BM63: 0 | BN63: 0 | BR63: 0 | BS63: 0 | BW63: 0 | BX63: 0 | CB63: 0 | CC63: 0 | CG63: 0 | CH63: 0 | CL63: 0 | CM63: 0 | CQ63: 0 | CR63: 0 | CV63: 0 | CW63: 0 | DA63: 0 | DB63: 0 | DF63: 0 | DG63: 0 | DK63: 0 | DL63: 0 | DP63: 0 | DQ63: 0 | DU63: 0 | DV63: 0 | DZ63: 0 | EA63: 0 | EE63: 0 | EF63: 0 | EJ63: 0 | EK63: 0 | EO63: 0 | EP63: 0 | ET63: 0 | EU63: 0
A64: 0.003 | B64: 0 | C64: 4х30 | E64: 0 | F64: 0 | J64: 0 | K64: 0 | O64: 0 | P64: 0 | T64: 0 | U64: 0 | Y64: 0 | Z64: 0 | AD64: 0 | AE64: 0 | AI64: 0 | AJ64: 0 | AN64: 0 | AO64: 0 | AS64: 0 | AT64: 0 | AX64: 0 | AY64: 0 | BC64: 0 | BD64: 0 | BH64: 0 | BI64: 0 | BM64: 0 | BN64: 0 | BR64: 0 | BS64: 0 | BW64: 0 | BX64: 0 | CB64: 0 | CC64: 0 | CG64: 0 | CH64: 0 | CL64: 0 | CM64: 0 | CQ64: 0 | CR64: 0 | CV64: 0 | CW64: 0 | DA64: 0 | DB64: 0 | DF64: 0 | DG64: 0 | DK64: 0 | DL64: 0 | DP64: 0 | DQ64: 0 | DU64: 0 | DV64: 0 | DZ64: 0 | EA64: 0 | EE64: 0 | EF64: 0 | EJ64: 0 | EK64: 0 | EO64: 0 | EP64: 0 | ET64: 0 | EU64: 0
A65: 0.003 | B65: 0 | C65: 3,5х16 | E65: 0 | F65: 0 | J65: 0 | K65: 0 | O65: 0 | P65: 0 | T65: 0 | U65: 0 | Y65: 0 | Z65: 0 | AD65: 0 | AE65: 0 | AI65: 0 | AJ65: 0 | AN65: 0 | AO65: 0 | AS65: 0 | AT65: 0 | AX65: 0 | AY65: 0 | BC65: 0 | BD65: 0 | BH65: 0 | BI65: 0 | BM65: 0 | BN65: 0 | BR65: 0 | BS65: 0 | BW65: 0 | BX65: 0 | CB65: 0 | CC65: 0 | CG65: 0 | CH65: 0 | CL65: 0 | CM65: 0 | CQ65: 0 | CR65: 0 | CV65: 0 | CW65: 0 | DA65: 0 | DB65: 0 | DF65: 0 | DG65: 0 | DK65: 0 | DL65: 0 | DP65: 0 | DQ65: 0 | DU65: 0 | DV65: 0 | DZ65: 0 | EA65: 0 | EE65: 0 | EF65: 0 | EJ65: 0 | EK65: 0 | EO65: 0 | EP65: 0 | ET65: 0 | EU65: 0
A66: 0.015 | B66: 0 | C66: Винт 4*40 | E66: 0 | F66: 0 | J66: 0 | K66: 0 | O66: 0 | P66: 0 | T66: 0 | U66: 0 | Y66: 0 | Z66: 0 | AD66: 0 | AE66: 0 | AI66: 0 | AJ66: 0 | AN66: 0 | AO66: 0 | AS66: 0 | AT66: 0 | AX66: 0 | AY66: 0 | BC66: 0 | BD66: 0 | BH66: 0 | BI66: 0 | BM66: 0 | BN66: 0 | BR66: 0 | BS66: 0 | BW66: 0 | BX66: 0 | CB66: 0 | CC66: 0 | CG66: 0 | CH66: 0 | CL66: 0 | CM66: 0 | CQ66: 0 | CR66: 0 | CV66: 0 | CW66: 0 | DA66: 0 | DB66: 0 | DF66: 0 | DG66: 0 | DK66: 0 | DL66: 0 | DP66: 0 | DQ66: 0 | DU66: 0 | DV66: 0 | DZ66: 0 | EA66: 0 | EE66: 0 | EF66: 0 | EJ66: 0 | EK66: 0 | EO66: 0 | EP66: 0 | ET66: 0 | EU66: 0
A67: 0.001 | B67: 0 | C67: Гвозди | E67: 0 | F67: 0 | J67: 0 | K67: 0 | O67: 0 | P67: 0 | T67: 0 | U67: 0 | Y67: 0 | Z67: 0 | AD67: 0 | AE67: 0 | AI67: 0 | AJ67: 0 | AN67: 0 | AO67: 0 | AS67: 0 | AT67: 0 | AX67: 0 | AY67: 0 | BC67: 0 | BD67: 0 | BH67: 0 | BI67: 0 | BM67: 0 | BN67: 0 | BR67: 0 | BS67: 0 | BW67: 0 | BX67: 0 | CB67: 0 | CC67: 0 | CG67: 0 | CH67: 0 | CL67: 0 | CM67: 0 | CQ67: 0 | CR67: 0 | CV67: 0 | CW67: 0 | DA67: 0 | DB67: 0 | DF67: 0 | DG67: 0 | DK67: 0 | DL67: 0 | DP67: 0 | DQ67: 0 | DU67: 0 | DV67: 0 | DZ67: 0 | EA67: 0 | EE67: 0 | EF67: 0 | EJ67: 0 | EK67: 0 | EO67: 0 | EP67: 0 | ET67: 0 | EU67: 0
A68: 0.7 | B68: 0 | C68: Напр. рол. 400 | E68: 0 | F68: 0 | J68: 0 | K68: 0 | O68: 0 | P68: 0 | T68: 0 | U68: 0 | Y68: 0 | Z68: 0 | AD68: 0 | AE68: 0 | AI68: 0 | AJ68: 0 | AN68: 0 | AO68: 0 | AS68: 0 | AT68: 0 | AX68: 0 | AY68: 0 | BC68: 0 | BD68: 0 | BH68: 0 | BI68: 0 | BM68: 0 | BN68: 0 | BR68: 0 | BS68: 0 | BW68: 0 | BX68: 0 | CB68: 0 | CC68: 0 | CG68: 0 | CH68: 0 | CL68: 0 | CM68: 0 | CQ68: 0 | CR68: 0 | CV68: 0 | CW68: 0 | DA68: 0 | DB68: 0 | DF68: 0 | DG68: 0 | DK68: 0 | DL68: 0 | DP68: 0 | DQ68: 0 | DU68: 0 | DV68: 0 | DZ68: 0 | EA68: 0 | EE68: 0 | EF68: 0 | EJ68: 0 | EK68: 0 | EO68: 0 | EP68: 0 | ET68: 0 | EU68: 0
A69: 0.84 | B69: 0 | C69: Напр. рол. 450 | E69: 0 | F69: 0 | J69: 0 | K69: 0 | O69: 0 | P69: 0 | T69: 0 | U69: 0 | Y69: 0 | Z69: 0 | AD69: 0 | AE69: 0 | AI69: 0 | AJ69: 0 | AN69: 0 | AO69: 0 | AS69: 0 | AT69: 0 | AX69: 0 | AY69: 0 | BC69: 0 | BD69: 0 | BH69: 0 | BI69: 0 | BM69: 0 | BN69: 0 | BR69: 0 | BS69: 0 | BW69: 0 | BX69: 0 | CB69: 0 | CC69: 0 | CG69: 0 | CH69: 0 | CL69: 0 | CM69: 0 | CQ69: 0 | CR69: 0 | CV69: 0 | CW69: 0 | DA69: 0 | DB69: 0 | DF69: 0 | DG69: 0 | DK69: 0 | DL69: 0 | DP69: 0 | DQ69: 0 | DU69: 0 | DV69: 0 | DZ69: 0 | EA69: 0 | EE69: 0 | EF69: 0 | EJ69: 0 | EK69: 0 | EO69: 0 | EP69: 0 | ET69: 0 | EU69: 0
A70: 0.95 | B70: 0 | C70: Напр. рол. 500 | E70: 0 | F70: 0 | J70: 0 | K70: 0 | O70: 0 | P70: 0 | T70: 0 | U70: 0 | Y70: 0 | Z70: 0 | AD70: 0 | AE70: 0 | AI70: 0 | AJ70: 0 | AN70: 0 | AO70: 0 | AS70: 0 | AT70: 0 | AX70: 0 | AY70: 0 | BC70: 0 | BD70: 0 | BH70: 0 | BI70: 0 | BM70: 0 | BN70: 0 | BR70: 0 | BS70: 0 | BW70: 0 | BX70: 0 | CB70: 0 | CC70: 0 | CG70: 0 | CH70: 0 | CL70: 0 | CM70: 0 | CQ70: 0 | CR70: 0 | CV70: 0 | CW70: 0 | DA70: 0 | DB70: 0 | DF70: 0 | DG70: 0 | DK70: 0 | DL70: 0 | DP70: 0 | DQ70: 0 | DU70: 0 | DV70: 0 | DZ70: 0 | EA70: 0 | EE70: 0 | EF70: 0 | EJ70: 0 | EK70: 0 | EO70: 0 | EP70: 0 | ET70: 0 | EU70: 0
A71: 1.1 | B71: 0 | C71: Напр. рол. 550 | E71: 0 | F71: 0 | J71: 0 | K71: 0 | O71: 0 | P71: 0 | T71: 0 | U71: 0 | Y71: 0 | Z71: 0 | AD71: 0 | AE71: 0 | AI71: 0 | AJ71: 0 | AN71: 0 | AO71: 0 | AS71: 0 | AT71: 0 | AX71: 0 | AY71: 0 | BC71: 0 | BD71: 0 | BH71: 0 | BI71: 0 | BM71: 0 | BN71: 0 | BR71: 0 | BS71: 0 | BW71: 0 | BX71: 0 | CB71: 0 | CC71: 0 | CG71: 0 | CH71: 0 | CL71: 0 | CM71: 0 | CQ71: 0 | CR71: 0 | CV71: 0 | CW71: 0 | DA71: 0 | DB71: 0 | DF71: 0 | DG71: 0 | DK71: 0 | DL71: 0 | DP71: 0 | DQ71: 0 | DU71: 0 | DV71: 0 | DZ71: 0 | EA71: 0 | EE71: 0 | EF71: 0 | EJ71: 0 | EK71: 0 | EO71: 0 | EP71: 0 | ET71: 0 | EU71: 0
A72: 1 | B72: 0 | C72: Труба | E72: 0 | F72: 0 | J72: 0 | K72: 0 | O72: 0 | P72: 0 | T72: 0 | U72: 0 | Y72: 0 | Z72: 0 | AD72: 0 | AE72: 0 | AI72: 0 | AJ72: 0 | AN72: 0 | AO72: 0 | AS72: 0 | AT72: 0 | AX72: 0 | AY72: 0 | BC72: 0 | BD72: 0 | BH72: 0 | BI72: 0 | BM72: 0 | BN72: 0 | BR72: 0 | BS72: 0 | BW72: 0 | BX72: 0 | CB72: 0 | CC72: 0 | CG72: 0 | CH72: 0 | CL72: 0 | CM72: 0 | CQ72: 0 | CR72: 0 | CV72: 0 | CW72: 0 | DA72: 0 | DB72: 0 | DF72: 0 | DG72: 0 | DK72: 0 | DL72: 0 | DP72: 0 | DQ72: 0 | DU72: 0 | DV72: 0 | DZ72: 0 | EA72: 0 | EE72: 0 | EF72: 0 | EJ72: 0 | EK72: 0 | EO72: 0 | EP72: 0 | ET72: 0 | EU72: 0
A73: 0.15 | B73: 0 | C73: Фланец | E73: 0 | F73: 0 | J73: 0 | K73: 0 | O73: 0 | P73: 0 | T73: 0 | U73: 0 | Y73: 0 | Z73: 0 | AD73: 0 | AE73: 0 | AI73: 0 | AJ73: 0 | AN73: 0 | AO73: 0 | AS73: 0 | AT73: 0 | AX73: 0 | AY73: 0 | BC73: 0 | BD73: 0 | BH73: 0 | BI73: 0 | BM73: 0 | BN73: 0 | BR73: 0 | BS73: 0 | BW73: 0 | BX73: 0 | CB73: 0 | CC73: 0 | CG73: 0 | CH73: 0 | CL73: 0 | CM73: 0 | CQ73: 0 | CR73: 0 | CV73: 0 | CW73: 0 | DA73: 0 | DB73: 0 | DF73: 0 | DG73: 0 | DK73: 0 | DL73: 0 | DP73: 0 | DQ73: 0 | DU73: 0 | DV73: 0 | DZ73: 0 | EA73: 0 | EE73: 0 | EF73: 0 | EJ73: 0 | EK73: 0 | EO73: 0 | EP73: 0 | ET73: 0 | EU73: 0
A74: 0.53 | B74: 0 | C74: Замок | E74: 0 | F74: 0 | J74: 0 | K74: 0 | O74: 0 | P74: 0 | T74: 0 | U74: 0 | Y74: 0 | Z74: 0 | AD74: 0 | AE74: 0 | AI74: 0 | AJ74: 0 | AN74: 0 | AO74: 0 | AS74: 0 | AT74: 0 | AX74: 0 | AY74: 0 | BC74: 0 | BD74: 0 | BH74: 0 | BI74: 0 | BM74: 0 | BN74: 0 | BR74: 0 | BS74: 0 | BW74: 0 | BX74: 0 | CB74: 0 | CC74: 0 | CG74: 0 | CH74: 0 | CL74: 0 | CM74: 0 | CQ74: 0 | CR74: 0 | CV74: 0 | CW74: 0 | DA74: 0 | DB74: 0 | DF74: 0 | DG74: 0 | DK74: 0 | DL74: 0 | DP74: 0 | DQ74: 0 | DU74: 0 | DV74: 0 | DZ74: 0 | EA74: 0 | EE74: 0 | EF74: 0 | EJ74: 0 | EK74: 0 | EO74: 0 | EP74: 0 | ET74: 0 | EU74: 0
A75: 0.25 | B75: 0 | C75: Задвижка | E75: 0 | F75: 0 | J75: 0 | K75: 0 | O75: 0 | P75: 0 | T75: 0 | U75: 0 | Y75: 0 | Z75: 0 | AD75: 0 | AE75: 0 | AI75: 0 | AJ75: 0 | AN75: 0 | AO75: 0 | AS75: 0 | AT75: 0 | AX75: 0 | AY75: 0 | BC75: 0 | BD75: 0 | BH75: 0 | BI75: 0 | BM75: 0 | BN75: 0 | BR75: 0 | BS75: 0 | BW75: 0 | BX75: 0 | CB75: 0 | CC75: 0 | CG75: 0 | CH75: 0 | CL75: 0 | CM75: 0 | CQ75: 0 | CR75: 0 | CV75: 0 | CW75: 0 | DA75: 0 | DB75: 0 | DF75: 0 | DG75: 0 | DK75: 0 | DL75: 0 | DP75: 0 | DQ75: 0 | DU75: 0 | DV75: 0 | DZ75: 0 | EA75: 0 | EE75: 0 | EF75: 0 | EJ75: 0 | EK75: 0 | EO75: 0 | EP75: 0 | ET75: 0 | EU75: 0
A76: 0.45 | B76: 0 | C76: Петля стекло накл. | E76: 0 | F76: 0 | J76: 0 | K76: 0 | O76: 0 | P76: 0 | T76: 0 | U76: 0 | Y76: 0 | Z76: 0 | AD76: 0 | AE76: 0 | AI76: 0 | AJ76: 0 | AN76: 0 | AO76: 0 | AS76: 0 | AT76: 0 | AX76: 0 | AY76: 0 | BC76: 0 | BD76: 0 | BH76: 0 | BI76: 0 | BM76: 0 | BN76: 0 | BR76: 0 | BS76: 0 | BW76: 0 | BX76: 0 | CB76: 0 | CC76: 0 | CG76: 0 | CH76: 0 | CL76: 0 | CM76: 0 | CQ76: 0 | CR76: 0 | CV76: 0 | CW76: 0 | DA76: 0 | DB76: 0 | DF76: 0 | DG76: 0 | DK76: 0 | DL76: 0 | DP76: 0 | DQ76: 0 | DU76: 0 | DV76: 0 | DZ76: 0 | EA76: 0 | EE76: 0 | EF76: 0 | EJ76: 0 | EK76: 0 | EO76: 0 | EP76: 0 | ET76: 0 | EU76: 0
A77: 0.66 | B77: 0 | C77: Петля Z-1 накл. | E77: 0 | F77: 0 | J77: 0 | K77: 0 | O77: 0 | P77: 0 | T77: 0 | U77: 0 | Y77: 0 | Z77: 0 | AD77: 0 | AE77: 0 | AI77: 0 | AJ77: 0 | AN77: 0 | AO77: 0 | AS77: 0 | AT77: 0 | AX77: 0 | AY77: 0 | BC77: 0 | BD77: 0 | BH77: 0 | BI77: 0 | BM77: 0 | BN77: 0 | BR77: 0 | BS77: 0 | BW77: 0 | BX77: 0 | CB77: 0 | CC77: 0 | CG77: 0 | CH77: 0 | CL77: 0 | CM77: 0 | CQ77: 0 | CR77: 0 | CV77: 0 | CW77: 0 | DA77: 0 | DB77: 0 | DF77: 0 | DG77: 0 | DK77: 0 | DL77: 0 | DP77: 0 | DQ77: 0 | DU77: 0 | DV77: 0 | DZ77: 0 | EA77: 0 | EE77: 0 | EF77: 0 | EJ77: 0 | EK77: 0 | EO77: 0 | EP77: 0 | ET77: 0 | EU77: 0
B78: 0 | C78: Винт 4*10 | E78: 0 | F78: 0 | J78: 0 | K78: 0 | O78: 0 | P78: 0 | T78: 0 | U78: 0 | Y78: 0 | Z78: 0 | AD78: 0 | AE78: 0 | AI78: 0 | AJ78: 0 | AN78: 0 | AO78: 0 | AS78: 0 | AT78: 0 | AX78: 0 | AY78: 0 | BC78: 0 | BD78: 0 | BH78: 0 | BI78: 0 | BM78: 0 | BN78: 0 | BR78: 0 | BS78: 0 | BW78: 0 | BX78: 0 | CB78: 0 | CC78: 0 | CG78: 0 | CH78: 0 | CL78: 0 | CM78: 0 | CQ78: 0 | CR78: 0 | CV78: 0 | CW78: 0 | DA78: 0 | DB78: 0 | DF78: 0 | DG78: 0 | DK78: 0 | DL78: 0 | DP78: 0 | DQ78: 0 | DU78: 0 | DV78: 0 | DZ78: 0 | EA78: 0 | EE78: 0 | EF78: 0 | EJ78: 0 | EK78: 0 | EO78: 0 | EP78: 0 | ET78: 0 | EU78: 0
B79: 0 | C79: Шайба SISO | E79: 0 | F79: 0 | J79: 0 | K79: 0 | O79: 0 | P79: 0 | T79: 0 | U79: 0 | Y79: 0 | Z79: 0 | AD79: 0 | AE79: 0 | AI79: 0 | AJ79: 0 | AN79: 0 | AO79: 0 | AS79: 0 | AT79: 0 | AX79: 0 | AY79: 0 | BC79: 0 | BD79: 0 | BH79: 0 | BI79: 0 | BM79: 0 | BN79: 0 | BR79: 0 | BS79: 0 | BW79: 0 | BX79: 0 | CB79: 0 | CC79: 0 | CG79: 0 | CH79: 0 | CL79: 0 | CM79: 0 | CQ79: 0 | CR79: 0 | CV79: 0 | CW79: 0 | DA79: 0 | DB79: 0 | DF79: 0 | DG79: 0 | DK79: 0 | DL79: 0 | DP79: 0 | DQ79: 0 | DU79: 0 | DV79: 0 | DZ79: 0 | EA79: 0 | EE79: 0 | EF79: 0 | EJ79: 0 | EK79: 0 | EO79: 0 | EP79: 0 | ET79: 0 | EU79: 0
B80: 0 | E80: 0 | F80: 0 | J80: 0 | K80: 0 | O80: 0 | P80: 0 | T80: 0 | U80: 0 | Y80: 0 | Z80: 0 | AD80: 0 | AE80: 0 | AI80: 0 | AJ80: 0 | AN80: 0 | AO80: 0 | AS80: 0 | AT80: 0 | AX80: 0 | AY80: 0 | BC80: 0 | BD80: 0 | BH80: 0 | BI80: 0 | BM80: 0 | BN80: 0 | BR80: 0 | BS80: 0 | BW80: 0 | BX80: 0 | CB80: 0 | CC80: 0 | CG80: 0 | CH80: 0 | CL80: 0 | CM80: 0 | CQ80: 0 | CR80: 0 | CV80: 0 | CW80: 0 | DA80: 0 | DB80: 0 | DF80: 0 | DG80: 0 | DK80: 0 | DL80: 0 | DP80: 0 | DQ80: 0 | DU80: 0 | DV80: 0 | DZ80: 0 | EA80: 0 | EE80: 0 | EF80: 0 | EJ80: 0 | EK80: 0 | EO80: 0 | EP80: 0 | ET80: 0 | EU80: 0
B81: 0 | E81: 0 | F81: 0 | J81: 0 | K81: 0 | O81: 0 | P81: 0 | T81: 0 | U81: 0 | Y81: 0 | Z81: 0 | AD81: 0 | AE81: 0 | AI81: 0 | AJ81: 0 | AN81: 0 | AO81: 0 | AS81: 0 | AT81: 0 | AX81: 0 | AY81: 0 | BC81: 0 | BD81: 0 | BH81: 0 | BI81: 0 | BM81: 0 | BN81: 0 | BR81: 0 | BS81: 0 | BW81: 0 | BX81: 0 | CB81: 0 | CC81: 0 | CG81: 0 | CH81: 0 | CL81: 0 | CM81: 0 | CQ81: 0 | CR81: 0 | CV81: 0 | CW81: 0 | DA81: 0 | DB81: 0 | DF81: 0 | DG81: 0 | DK81: 0 | DL81: 0 | DP81: 0 | DQ81: 0 | DU81: 0 | DV81: 0 | DZ81: 0 | EA81: 0 | EE81: 0 | EF81: 0 | EJ81: 0 | EK81: 0 | EO81: 0 | EP81: 0 | ET81: 0 | EU81: 0
G82: =SUMPRODUCT($A$47:$A$81,G47:G81) -> 0 | L82: =SUMPRODUCT($A$47:$A$81,L47:L81) -> 0 | Q82: =SUMPRODUCT($A$47:$A$81,Q47:Q81) -> 0 | V82: =SUMPRODUCT($A$47:$A$81,V47:V81) -> 0 | AA82: =SUMPRODUCT($A$47:$A$81,AA47:AA81) -> 0 | AF82: =SUMPRODUCT($A$47:$A$81,AF47:AF81) -> 0 | AK82: =SUMPRODUCT($A$47:$A$81,AK47:AK81) -> 0 | AP82: =SUMPRODUCT($A$47:$A$81,AP47:AP81) -> 0 | AU82: =SUMPRODUCT($A$47:$A$81,AU47:AU81) -> 0 | AZ82: =SUMPRODUCT($A$47:$A$81,AZ47:AZ81) -> 0 | BE82: =SUMPRODUCT($A$47:$A$81,BE47:BE81) -> 0 | BJ82: =SUMPRODUCT($A$47:$A$81,BJ47:BJ81) -> 0 | BO82: =SUMPRODUCT($A$47:$A$81,BO47:BO81) -> 0 | BT82: =SUMPRODUCT($A$47:$A$81,BT47:BT81) -> 0 | BY82: =SUMPRODUCT($A$47:$A$81,BY47:BY81) -> 0 | CD82: =SUMPRODUCT($A$47:$A$81,CD47:CD81) -> 0 | CI82: =SUMPRODUCT($A$47:$A$81,CI47:CI81) -> 0 | CN82: =SUMPRODUCT($A$47:$A$81,CN47:CN81) -> 0 | CS82: =SUMPRODUCT($A$47:$A$81,CS47:CS81) -> 0 | CX82: =SUMPRODUCT($A$47:$A$81,CX47:CX81) -> 0 | DC82: =SUMPRODUCT($A$47:$A$81,DC47:DC81) -> 0 | DH82: =SUMPRODUCT($A$47:$A$81,DH47:DH81) -> 0 | DM82: =SUMPRODUCT($A$47:$A$81,DM47:DM81) -> 0 | DR82: =SUMPRODUCT($A$47:$A$81,DR47:DR81) -> 0 | DW82: =SUMPRODUCT($A$47:$A$81,DW47:DW81) -> 0 | EB82: =SUMPRODUCT($A$47:$A$81,EB47:EB81) -> 0 | EG82: =SUMPRODUCT($A$47:$A$81,EG47:EG81) -> 0 | EL82: =SUMPRODUCT($A$47:$A$81,EL47:EL81) -> 0 | EQ82: =SUMPRODUCT($A$47:$A$81,EQ47:EQ81) -> 0 | EV82: =SUMPRODUCT($A$47:$A$81,EV47:EV81) -> 0
AH183: =AH22 -> ДВП | AI183: =AI22 -> 0 | AJ183: =AJ22*$AJ$5 -> 0 | AM183: =AM22 -> ДВП | AN183: =AN22 -> 0 | AO183: =AO22*$AO$5 -> 0 | AR183: =AR22 -> ДВП | AS183: =AS22 -> 0 | AT183: =AT22*$AT$5 -> 0

Sheet Лист2

Sheet Лист3
